Workbook

Sheet ecran utilisateur
B2: REFERENCE : | C2: =archivage!A30 -> 100459 | E2: COLISAGE : | F2: =IFERROR(VLOOKUP(C2,BDD!A:E,5,FALSE),"") -> 
B3: REFERENCE NUM : | C3: =IF(LEFT(C2,3)="TBC",RIGHT(C2,LEN(C2)-4),IF(ISNUMBER(VALUE(C2)),C2,RIGHT(C2,LEN(C2)-3))) -> 100459
B4: CONSOMMABLE ? | C4: =VLOOKUP(C3, archivage!A:J,4,FALSE) -> FAUX | E4: =IFERROR(VLOOKUP('ecran utilisateur'!C3,BDD!A:D,4,FALSE),"") -> 70
B5: VRAC ? | C5: =VLOOKUP(C3, archivage!A:J,5,FALSE) -> VRAI
B6: Poids premier produit : | C6: =VLOOKUP(C3, archivage!A:J,6,FALSE) -> 30.727 | D6: g | E6: =IF(AND($C$7>0,$C$8>0,$C$9>0,$C$10>0),IF(OR(C6>=1.2*AVERAGE(C7:C10),C6<=0.8*AVERAGE(C7:C10)),"POIDS INCOHERENT : PESER UN AUTRE PRODUIT",""),"") -> 
B7: Poids second produit : | C7: =VLOOKUP(C3, archivage!A:J,7,FALSE) -> 30.568 | D7: g | E7: =IF(AND($C$6>0,$C$8>0,$C$9>0,$C$10>0),IF(OR(C7>=1.2*AVERAGE(C6,C8,C9,C10),C7<=0.8*AVERAGE(C6,C8,C9,C10)),"POIDS INCOHERENT : PESER UN AUTRE PRODUIT",""),"") -> 
B8: Poids troisieme produit : | C8: =VLOOKUP(C3, archivage!A:J,8,FALSE) -> 26.841 | D8: g | E8: =IF(AND($C$7>0,$C$6>0,$C$9>0,$C$10>0),IF(OR(C8>=1.2*AVERAGE(C6,C7,C9,C10),C8<=0.8*AVERAGE(C6,C7,C9,C10)),"POIDS INCOHERENT : PESER UN AUTRE PRODUIT",""),"") -> 
B9: Poids quatrieme produit : | C9: =VLOOKUP(C3, archivage!A:J,9,FALSE) -> 31.069 | D9: g | E9: =IF(AND($C$7>0,$C$6>0,$C$8>0,$C$10>0),IF(OR(C9>=1.2*AVERAGE(C7,C8,C10,C6),C9<=0.8*AVERAGE(C7,C8,C10,C6)),"POIDS INCOHERENT : PESER UN AUTRE PRODUIT",""),"") -> 
B10: Poids cinquieme produit : | C10: =VLOOKUP(C3, archivage!A:J,10,FALSE) -> 30.38 | D10: g | E10: =IF(AND($C$7>0,$C$6>0,$C$8>0,$C$9>0,C10>0),IF(OR(C10>=1.2*AVERAGE(C8,C9,C6,C7),C10<=0.8*AVERAGE(C8,C9,C6,C7)),"POIDS INCOHERENT : PESER UN AUTRE PRODUIT",""),"") -> 
B12: Max pesable : | C12: Statut : | D12: Poids enregistré : | E12: Consommable : | F12: Vrac : | G12: V1 | H12: V2 | I12: V3 | J12: V4 | K12: V5
B13: =IFERROR(IF(SUM(macro!L2:L377)<0,IF(macro!L377>=BDD!H10,macro!K377,(INDEX(macro!K:L,MATCH(ROUND(BDD!H10-1,0),macro!L:L,0),1))),(INDEX(macro!K:L,MATCH(ROUND(BDD!H11,0),macro!L:L,1),1))),"") -> 22 | C13: =IF(B13="","",IF(B13>=E4,"Pesable","Non Pesable")) -> Non Pesable | D13: =IFERROR(AVERAGE(C6:C10),"") -> 29.917 | E13: =IF(ISBLANK(C4),"",IF(OR(C4="consommable_oui",C4="vrai"),"VRAI",IF(OR(C4="consommable_non",C4="faux"),"FAUX",""))) -> FAUX | F13: =IF(ISBLANK(C5),"",IF(OR(C5="vrac_oui",C5="vrai"),"VRAI",IF(OR(C5="vrac_non",C5="faux"),"FAUX",""))) -> VRAI | G13: =IF(C6="","",C6) -> 30.727 | H13: =IF(C7="","",C7) -> 30.568 | I13: =IF(C8="","",C8) -> 26.841 | J13: =IF(C9="","",C9) -> 31.069 | K13: =IF(C10="","",C10) -> 30.38
F17: 31
K1048576: 2022-04-27T17:21:26

Sheet macro
A1: Poids calculé | B1: Poids réel | C1: Qte | D1: poids net | E1: poids carton | F1: poids total attendu | G1: poids total réel | H1: poids pesé | I1: poids pdt pesé | J1: nb pcs | K1: arrondi | L1: contrôle | M1: % contrôle
A2: =AVERAGE('ecran utilisateur'!C6:C10) -> 29.917 | B2: =IF(macro!A2-MIN('ecran utilisateur'!C6:C10)>MAX('ecran utilisateur'!C6:C10)-macro!A2,MIN('ecran utilisateur'!C6:C10),MAX('ecran utilisateur'!C6:C10)) -> 26.841 | C2: 1 | D2: =C2*A2 -> 29.917 | E2: 780 | F2: =E2+D2 -> 809.917 | G2: =B2+E2 -> 806.841 | H2: =ROUND((G2)/0.005,0)*0.005 -> 806.840 | I2: =H2-E2 -> 26.840 | J2: =I2/A2 -> 0.8971487783 | K2: =ROUND(J2,0) -> 1 | L2: =K2-C2 -> 0 | M2: =J2/K2 -> 89.7%
A3: =$A$2 -> 29.917 | B3: =$B$2*C3 -> 53.682 | C3: 2 | D3: 59.834 | E3: =$E$2 -> 780 | F3: 839.834 | G3: 833.682 | H3: 833.680 | I3: 53.680 | J3: 1.794297557 | K3: 2 | L3: =K3-C3 -> 0 | M3: 89.7%
A4: 29.917 | B4: 80.523 | C4: 3 | D4: 89.751 | E4: 780 | F4: 869.751 | G4: 860.523 | H4: 860.525 | I4: 80.525 | J4: 2.691613464 | K4: 3 | L4: =K4-C4 -> 0 | M4: 89.7%
A5: 29.917 | B5: 107.364 | C5: 4 | D5: 119.668 | E5: 780 | F5: 899.668 | G5: 887.364 | H5: 887.365 | I5: 107.365 | J5: 3.588762242 | K5: 4 | L5: 0 | M5: 89.7%
A6: 29.917 | B6: 134.205 | C6: 5 | D6: 149.585 | E6: 780 | F6: 929.585 | G6: 914.205 | H6: 914.205 | I6: 134.205 | J6: 4.48591102 | K6: 4 | L6: -1 | M6: 112.1%
A7: 29.917 | B7: 161.046 | C7: 6 | D7: 179.502 | E7: 780 | F7: 959.502 | G7: 941.046 | H7: 941.045 | I7: 161.045 | J7: 5.383059799 | K7: 5 | L7: -1 | M7: 107.7%
A8: 29.917 | B8: 187.887 | C8: 7 | D8: 209.419 | E8: 780 | F8: 989.419 | G8: 967.887 | H8: =ROUND((G8)/0.005,0)*0.005 -> 967.885 | I8: 187.885 | J8: 6.280208577 | K8: 6 | L8: -1 | M8: 104.7%
A9: 29.917 | B9: 214.728 | C9: 8 | D9: 239.336 | E9: 780 | F9: 1019.336 | G9: 994.728 | H9: 994.730 | I9: 214.730 | J9: 7.177524484 | K9: 7 | L9: -1 | M9: 102.5%
A10: 29.917 | B10: 241.569 | C10: 9 | D10: 269.253 | E10: 780 | F10: 1049.253 | G10: 1021.569 | H10: 1021.570 | I10: 241.570 | J10: 8.074673263 | K10: 8 | L10: -1 | M10: 100.9%
A11: 29.917 | B11: 268.41 | C11: 10 | D11: 299.17 | E11: 780 | F11: 1079.17 | G11: 1048.410 | H11: 1048.410 | I11: 268.410 | J11: 8.971822041 | K11: 9 | L11: -1 | M11: 99.7%
A12: 29.917 | B12: 295.251 | C12: 11 | D12: 329.087 | E12: 780 | F12: 1109.087 | G12: 1075.251 | H12: 1075.250 | I12: 295.250 | J12: 9.868970819 | K12: 10 | L12: -1 | M12: 98.7%
A13: 29.917 | B13: 322.092 | C13: 12 | D13: 359.004 | E13: 780 | F13: 1139.004 | G13: =B13+E13 -> 1102.092 | H13: 1102.090 | I13: 322.090 | J13: 10.7661196 | K13: 11 | L13: -1 | M13: 97.9%
A14: 29.917 | B14: 348.933 | C14: 13 | D14: 388.921 | E14: 780 | F14: 1168.921 | G14: 1128.933 | H14: 1128.935 | I14: 348.935 | J14: 11.6634355 | K14: 12 | L14: -1 | M14: 97.2%
A15: 29.917 | B15: 375.774 | C15: 14 | D15: 418.838 | E15: 780 | F15: 1198.838 | G15: 1155.774 | H15: 1155.775 | I15: 375.775 | J15: 12.56058428 | K15: 13 | L15: -1 | M15: 96.6%
A16: 29.917 | B16: 402.615 | C16: 15 | D16: 448.755 | E16: 780 | F16: 1228.755 | G16: 1182.615 | H16: 1182.615 | I16: 402.615 | J16: 13.45773306 | K16: 13 | L16: -2 | M16: 103.5%
A17: 29.917 | B17: 429.456 | C17: 16 | D17: 478.672 | E17: 780 | F17: 1258.672 | G17: 1209.456 | H17: 1209.455 | I17: 429.455 | J17: 14.35488184 | K17: 14 | L17: -2 | M17: 102.5%
A18: 29.917 | B18: 456.297 | C18: 17 | D18: 508.589 | E18: 780 | F18: 1288.589 | G18: 1236.297 | H18: 1236.295 | I18: 456.295 | J18: 15.25203062 | K18: 15 | L18: -2 | M18: 101.7%
A19: 29.917 | B19: 483.138 | C19: 18 | D19: 538.506 | E19: 780 | F19: 1318.506 | G19: 1263.138 | H19: 1263.140 | I19: 483.140 | J19: 16.14934653 | K19: 16 | L19: -2 | M19: 101%
A20: 29.917 | B20: 509.979 | C20: 19 | D20: 568.423 | E20: 780 | F20: 1348.423 | G20: 1289.979 | H20: 1289.980 | I20: 509.980 | J20: 17.0464953 | K20: 17 | L20: -2 | M20: 100.27%
A21: 29.917 | B21: 536.82 | C21: 20 | D21: 598.34 | E21: 780 | F21: 1378.34 | G21: 1316.820 | H21: 1316.820 | I21: 536.820 | J21: 17.94364408 | K21: 18 | L21: -2 | M21: 100%
A22: 29.917 | B22: 563.661 | C22: 21 | D22: 628.257 | E22: 780 | F22: 1408.257 | G22: 1343.661 | H22: 1343.660 | I22: 563.660 | J22: 18.84079286 | K22: 19 | L22: -2 | M22: 99%
A23: 29.917 | B23: 590.502 | C23: 22 | D23: 658.174 | E23: 780 | F23: 1438.174 | G23: 1370.502 | H23: 1370.500 | I23: 590.500 | J23: 19.73794164 | K23: 20 | L23: -2 | M23: 99%
A24: 29.917 | B24: 617.343 | C24: 23 | D24: 688.091 | E24: 780 | F24: 1468.091 | G24: 1397.343 | H24: 1397.345 | I24: 617.345 | J24: 20.63525755 | K24: 21 | L24: -2 | M24: 98%
A25: 29.917 | B25: 644.184 | C25: 24 | D25: 718.008 | E25: 780 | F25: 1498.008 | G25: 1424.184 | H25: 1424.185 | I25: 644.185 | J25: 21.53240632 | K25: 22 | L25: -2 | M25: 98%
A26: 29.917 | B26: 671.025 | C26: 25 | D26: 747.925 | E26: 780 | F26: 1527.925 | G26: 1451.025 | H26: 1451.025 | I26: 671.025 | J26: 22.4295551 | K26: 22 | L26: -3 | M26: 102%
A27: 29.917 | B27: 697.866 | C27: 26 | D27: 777.842 | E27: 780 | F27: 1557.842 | G27: 1477.866 | H27: 1477.865 | I27: 697.865 | J27: 23.32670388 | K27: 23 | L27: -3 | M27: 101%
A28: 29.917 | B28: 724.707 | C28: 27 | D28: 807.759 | E28: 780 | F28: 1587.759 | G28: 1504.707 | H28: 1504.705 | I28: 724.705 | J28: 24.22385266 | K28: 24 | L28: -3 | M28: 101%
A29: 29.917 | B29: 751.548 | C29: 28 | D29: 837.676 | E29: 780 | F29: 1617.676 | G29: 1531.548 | H29: 1531.550 | I29: 751.550 | J29: 25.12116857 | K29: 25 | L29: -3 | M29: 100%
A30: 29.917 | B30: 778.389 | C30: 29 | D30: 867.593 | E30: 780 | F30: 1647.593 | G30: 1558.389 | H30: 1558.390 | I30: 778.390 | J30: 26.01831734 | K30: 26 | L30: -3 | M30: 100%
A31: 29.917 | B31: 805.23 | C31: 30 | D31: 897.51 | E31: 780 | F31: 1677.51 | G31: 1585.230 | H31: 1585.230 | I31: 805.230 | J31: 26.91546612 | K31: 27 | L31: -3 | M31: 100%
A32: 29.917 | B32: 832.071 | C32: 31 | D32: 927.427 | E32: 780 | F32: 1707.427 | G32: 1612.071 | H32: 1612.070 | I32: 832.070 | J32: 27.8126149 | K32: 28 | L32: -3 | M32: 99%
A33: 29.917 | B33: 858.912 | C33: 32 | D33: 957.344 | E33: 780 | F33: 1737.344 | G33: 1638.912 | H33: 1638.910 | I33: 858.910 | J33: 28.70976368 | K33: 29 | L33: -3 | M33: 99%
A34: 29.917 | B34: 885.753 | C34: 33 | D34: 987.261 | E34: 780 | F34: 1767.261 | G34: 1665.753 | H34: 1665.755 | I34: 885.755 | J34: 29.60707959 | K34: 30 | L34: -3 | M34: 99%
A35: 29.917 | B35: 912.594 | C35: 34 | D35: 1017.178 | E35: 780 | F35: 1797.178 | G35: 1692.594 | H35: 1692.595 | I35: 912.595 | J35: 30.50422837 | K35: 31 | L35: -3 | M35: 98%
A36: 29.917 | B36: 939.435 | C36: 35 | D36: 1047.095 | E36: 780 | F36: 1827.095 | G36: 1719.435 | H36: 1719.435 | I36: 939.435 | J36: 31.40137714 | K36: 31 | L36: -4 | M36: 101%
A37: 29.917 | B37: 966.276 | C37: 36 | D37: 1077.012 | E37: 780 | F37: 1857.012 | G37: 1746.276 | H37: 1746.275 | I37: 966.275 | J37: 32.29852592 | K37: 32 | L37: -4 | M37: 101%
A38: 29.917 | B38: 993.117 | C38: 37 | D38: 1106.929 | E38: 780 | F38: 1886.929 | G38: 1773.117 | H38: 1773.115 | I38: 993.115 | J38: 33.1956747 | K38: 33 | L38: -4 | M38: 101%
A39: 29.917 | B39: 1019.958 | C39: 38 | D39: 1136.846 | E39: 780 | F39: 1916.846 | G39: 1799.958 | H39: 1799.960 | I39: 1019.960 | J39: 34.09299061 | K39: 34 | L39: -4 | M39: 100%
A40: 29.917 | B40: 1046.799 | C40: 39 | D40: 1166.763 | E40: 780 | F40: 1946.763 | G40: 1826.799 | H40: 1826.800 | I40: 1046.800 | J40: 34.99013939 | K40: 35 | L40: -4 | M40: 100%
A41: 29.917 | B41: 1073.64 | C41: 40 | D41: 1196.68 | E41: 780 | F41: 1976.68 | G41: 1853.640 | H41: 1853.640 | I41: 1073.640 | J41: 35.88728816 | K41: 36 | L41: -4 | M41: 100%
A42: 29.917 | B42: 1100.481 | C42: 41 | D42: 1226.597 | E42: 780 | F42: 2006.597 | G42: 1880.481 | H42: 1880.480 | I42: 1100.480 | J42: 36.78443694 | K42: 37 | L42: -4 | M42: 99%
A43: 29.917 | B43: 1127.322 | C43: 42 | D43: 1256.514 | E43: 780 | F43: 2036.514 | G43: 1907.322 | H43: 1907.320 | I43: 1127.320 | J43: 37.68158572 | K43: 38 | L43: -4 | M43: 99%
A44: 29.917 | B44: 1154.163 | C44: 43 | D44: 1286.431 | E44: 780 | F44: 2066.431 | G44: 1934.163 | H44: 1934.165 | I44: 1154.165 | J44: 38.57890163 | K44: 39 | L44: -4 | M44: 99%
A45: 29.917 | B45: 1181.004 | C45: 44 | D45: 1316.348 | E45: 780 | F45: 2096.348 | G45: 1961.004 | H45: 1961.005 | I45: 1181.005 | J45: 39.47605041 | K45: 39 | L45: -5 | M45: 101%
A46: 29.917 | B46: 1207.845 | C46: 45 | D46: 1346.265 | E46: 780 | F46: 2126.265 | G46: 1987.845 | H46: 1987.845 | I46: 1207.845 | J46: 40.37319918 | K46: 40 | L46: -5 | M46: 101%
A47: 29.917 | B47: 1234.686 | C47: 46 | D47: 1376.182 | E47: 780 | F47: 2156.182 | G47: 2014.686 | H47: 2014.685 | I47: 1234.685 | J47: 41.27034796 | K47: 41 | L47: -5 | M47: 101%
A48: 29.917 | B48: 1261.527 | C48: 47 | D48: 1406.099 | E48: 780 | F48: 2186.099 | G48: 2041.527 | H48: 2041.525 | I48: 1261.525 | J48: 42.16749674 | K48: 42 | L48: -5 | M48: 100%
A49: 29.917 | B49: 1288.368 | C49: 48 | D49: 1436.016 | E49: 780 | F49: 2216.016 | G49: 2068.368 | H49: 2068.370 | I49: 1288.370 | J49: 43.06481265 | K49: 43 | L49: -5 | M49: 100%
A50: 29.917 | B50: 1315.209 | C50: 49 | D50: 1465.933 | E50: 780 | F50: 2245.933 | G50: 2095.209 | H50: 2095.210 | I50: 1315.210 | J50: 43.96196143 | K50: 44 | L50: -5 | M50: 100%
A51: 29.917 | B51: 1342.05 | C51: 50 | D51: 1495.85 | E51: 780 | F51: 2275.85 | G51: 2122.050 | H51: 2122.050 | I51: 1342.050 | J51: 44.8591102 | K51: 45 | L51: -5 | M51: 100%
A52: 29.917 | B52: 1368.891 | C52: 51 | D52: 1525.767 | E52: 780 | F52: 2305.767 | G52: 2148.891 | H52: 2148.890 | I52: 1368.890 | J52: 45.75625898 | K52: 46 | L52: -5 | M52: 99%
A53: 29.917 | B53: 1395.732 | C53: 52 | D53: 1555.684 | E53: 780 | F53: 2335.684 | G53: 2175.732 | H53: 2175.730 | I53: 1395.730 | J53: 46.65340776 | K53: 47 | L53: -5 | M53: 99%
A54: 29.917 | B54: 1422.573 | C54: 53 | D54: 1585.601 | E54: 780 | F54: 2365.601 | G54: 2202.573 | H54: 2202.575 | I54: 1422.575 | J54: 47.55072367 | K54: 48 | L54: -5 | M54: 99%
A55: 29.917 | B55: 1449.414 | C55: 54 | D55: 1615.518 | E55: 780 | F55: 2395.518 | G55: 2229.414 | H55: 2229.415 | I55: 1449.415 | J55: 48.44787245 | K55: 48 | L55: -6 | M55: 101%
A56: 29.917 | B56: 1476.255 | C56: 55 | D56: 1645.435 | E56: 780 | F56: 2425.435 | G56: 2256.255 | H56: 2256.255 | I56: 1476.255 | J56: 49.34502123 | K56: 49 | L56: -6 | M56: 101%
A57: 29.917 | B57: 1503.096 | C57: 56 | D57: 1675.352 | E57: 780 | F57: 2455.352 | G57: 2283.096 | H57: 2283.095 | I57: 1503.095 | J57: 50.24217 | K57: 50 | L57: -6 | M57: 100%
A58: 29.917 | B58: 1529.937 | C58: 57 | D58: 1705.269 | E58: 780 | F58: 2485.269 | G58: 2309.937 | H58: 2309.935 | I58: 1529.935 | J58: 51.13931878 | K58: 51 | L58: -6 | M58: 100%
A59: 29.917 | B59: 1556.778 | C59: 58 | D59: 1735.186 | E59: 780 | F59: 2515.186 | G59: 2336.778 | H59: 2336.780 | I59: 1556.780 | J59: 52.03663469 | K59: 52 | L59: -6 | M59: 100%
A60: 29.917 | B60: 1583.619 | C60: 59 | D60: 1765.103 | E60: 780 | F60: 2545.103 | G60: 2363.619 | H60: 2363.620 | I60: 1583.620 | J60: 52.93378347 | K60: 53 | L60: -6 | M60: 100%
A61: 29.917 | B61: 1610.46 | C61: 60 | D61: 1795.02 | E61: 780 | F61: 2575.02 | G61: 2390.460 | H61: 2390.460 | I61: 1610.460 | J61: 53.83093225 | K61: 54 | L61: -6 | M61: 100%
A62: 29.917 | B62: 1637.301 | C62: 61 | D62: 1824.937 | E62: 780 | F62: 2604.937 | G62: 2417.301 | H62: 2417.300 | I62: 1637.300 | J62: 54.72808102 | K62: 55 | L62: -6 | M62: 100%
A63: 29.917 | B63: 1664.142 | C63: 62 | D63: 1854.854 | E63: 780 | F63: 2634.854 | G63: 2444.142 | H63: 2444.140 | I63: 1664.140 | J63: 55.6252298 | K63: 56 | L63: -6 | M63: 99%
A64: 29.917 | B64: 1690.983 | C64: 63 | D64: 1884.771 | E64: 780 | F64: 2664.771 | G64: 2470.983 | H64: 2470.985 | I64: 1690.985 | J64: 56.52254571 | K64: 57 | L64: -6 | M64: 99%
A65: 29.917 | B65: 1717.824 | C65: 64 | D65: 1914.688 | E65: 780 | F65: 2694.688 | G65: 2497.824 | H65: 2497.825 | I65: 1717.825 | J65: 57.41969449 | K65: 57 | L65: -7 | M65: 101%
A66: 29.917 | B66: 1744.665 | C66: 65 | D66: =C66*A66 -> 1944.605 | E66: 780 | F66: =E66+D66 -> 2724.605 | G66: =B66+E66 -> 2524.665 | H66: =ROUND((G66)/0.005,0)*0.005 -> 2524.665 | I66: =H66-E66 -> 1744.665 | J66: =I66/A66 -> 58.31684327 | K66: =ROUND(J66,0) -> 58 | L66: -7 | M66: =J66/K66 -> 101%
A67: =$A$2 -> 29.917 | B67: =$B$2*C67 -> 1771.506 | C67: 66 | D67: 1974.522 | E67: =$E$2 -> 780 | F67: 2754.522 | G67: 2551.506 | H67: 2551.505 | I67: 1771.505 | J67: 59.21399204 | K67: 59 | L67: =K67-C67 -> -7 | M67: 100%
A68: 29.917 | B68: 1798.347 | C68: 67 | D68: 2004.439 | E68: 780 | F68: 2784.439 | G68: 2578.347 | H68: 2578.345 | I68: 1798.345 | J68: 60.11114082 | K68: 60 | L68: -7 | M68: 100%
A69: 29.917 | B69: 1825.188 | C69: 68 | D69: 2034.356 | E69: 780 | F69: 2814.356 | G69: 2605.188 | H69: 2605.190 | I69: 1825.190 | J69: 61.00845673 | K69: 61 | L69: -7 | M69: 100%
A70: 29.917 | B70: 1852.029 | C70: 69 | D70: 2064.273 | E70: 780 | F70: 2844.273 | G70: 2632.029 | H70: 2632.030 | I70: 1852.030 | J70: 61.90560551 | K70: 62 | L70: -7 | M70: 100%
A71: 29.917 | B71: 1878.87 | C71: 70 | D71: 2094.19 | E71: 780 | F71: 2874.19 | G71: 2658.870 | H71: 2658.870 | I71: 1878.870 | J71: 62.80275429 | K71: 63 | L71: -7 | M71: 100%
A72: 29.917 | B72: 1905.711 | C72: 71 | D72: 2124.107 | E72: 780 | F72: 2904.107 | G72: 2685.711 | H72: 2685.710 | I72: 1905.710 | J72: 63.69990307 | K72: 64 | L72: -7 | M72: 100%
A73: 29.917 | B73: 1932.552 | C73: 72 | D73: 2154.024 | E73: 780 | F73: 2934.024 | G73: 2712.552 | H73: 2712.550 | I73: 1932.550 | J73: 64.59705184 | K73: 65 | L73: -7 | M73: 99%
A74: 29.917 | B74: 1959.393 | C74: 73 | D74: 2183.941 | E74: 780 | F74: 2963.941 | G74: 2739.393 | H74: 2739.395 | I74: 1959.395 | J74: 65.49436775 | K74: 65 | L74: -8 | M74: 101%
A75: 29.917 | B75: 1986.234 | C75: 74 | D75: 2213.858 | E75: 780 | F75: 2993.858 | G75: 2766.234 | H75: 2766.235 | I75: 1986.235 | J75: 66.39151653 | K75: 66 | L75: -8 | M75: 101%
A76: 29.917 | B76: 2013.075 | C76: 75 | D76: 2243.775 | E76: 780 | F76: 3023.775 | G76: 2793.075 | H76: 2793.075 | I76: 2013.075 | J76: 67.28866531 | K76: 67 | L76: -8 | M76: 100%
A77: 29.917 | B77: 2039.916 | C77: 76 | D77: 2273.692 | E77: 780 | F77: 3053.692 | G77: 2819.916 | H77: 2819.915 | I77: 2039.915 | J77: 68.18581409 | K77: 68 | L77: -8 | M77: 100%
A78: 29.917 | B78: 2066.757 | C78: 77 | D78: 2303.609 | E78: 780 | F78: 3083.609 | G78: 2846.757 | H78: 2846.755 | I78: 2066.755 | J78: 69.08296286 | K78: 69 | L78: -8 | M78: 100%
A79: 29.917 | B79: 2093.598 | C79: 78 | D79: 2333.526 | E79: 780 | F79: 3113.526 | G79: 2873.598 | H79: 2873.600 | I79: 2093.600 | J79: 69.98027877 | K79: 70 | L79: -8 | M79: 100%
A80: 29.917 | B80: 2120.439 | C80: 79 | D80: 2363.443 | E80: 780 | F80: 3143.443 | G80: 2900.439 | H80: 2900.440 | I80: 2120.440 | J80: 70.87742755 | K80: 71 | L80: -8 | M80: 100%
A81: 29.917 | B81: 2147.28 | C81: 80 | D81: 2393.36 | E81: 780 | F81: 3173.36 | G81: 2927.280 | H81: 2927.280 | I81: 2147.280 | J81: 71.77457633 | K81: 72 | L81: -8 | M81: 100%
A82: 29.917 | B82: 2174.121 | C82: 81 | D82: 2423.277 | E82: 780 | F82: 3203.277 | G82: 2954.121 | H82: 2954.120 | I82: 2174.120 | J82: 72.67172511 | K82: 73 | L82: -8 | M82: 100%
A83: 29.917 | B83: 2200.962 | C83: 82 | D83: 2453.194 | E83: 780 | F83: 3233.194 | G83: 2980.962 | H83: 2980.960 | I83: 2200.960 | J83: 73.56887388 | K83: 74 | L83: -8 | M83: 99%
A84: 29.917 | B84: 2227.803 | C84: 83 | D84: 2483.111 | E84: 780 | F84: 3263.111 | G84: 3007.803 | H84: 3007.805 | I84: 2227.805 | J84: 74.46618979 | K84: 74 | L84: -9 | M84: 101%
A85: 29.917 | B85: 2254.644 | C85: 84 | D85: 2513.028 | E85: 780 | F85: 3293.028 | G85: 3034.644 | H85: 3034.645 | I85: 2254.645 | J85: 75.36333857 | K85: 75 | L85: -9 | M85: 100%
A86: 29.917 | B86: 2281.485 | C86: 85 | D86: 2542.945 | E86: 780 | F86: 3322.945 | G86: 3061.485 | H86: 3061.485 | I86: 2281.485 | J86: 76.26048735 | K86: 76 | L86: -9 | M86: 100%
A87: 29.917 | B87: 2308.326 | C87: 86 | D87: 2572.862 | E87: 780 | F87: 3352.862 | G87: 3088.326 | H87: 3088.325 | I87: 2308.325 | J87: 77.15763613 | K87: 77 | L87: -9 | M87: 100%
A88: 29.917 | B88: 2335.167 | C88: 87 | D88: 2602.779 | E88: 780 | F88: 3382.779 | G88: 3115.167 | H88: 3115.165 | I88: 2335.165 | J88: 78.0547849 | K88: 78 | L88: -9 | M88: 100%
A89: 29.917 | B89: 2362.008 | C89: 88 | D89: 2632.696 | E89: 780 | F89: 3412.696 | G89: 3142.008 | H89: 3142.010 | I89: 2362.010 | J89: 78.95210081 | K89: 79 | L89: -9 | M89: 100%
A90: 29.917 | B90: 2388.849 | C90: 89 | D90: 2662.613 | E90: 780 | F90: 3442.613 | G90: 3168.849 | H90: 3168.850 | I90: 2388.850 | J90: 79.84924959 | K90: 80 | L90: -9 | M90: 100%
A91: 29.917 | B91: 2415.69 | C91: 90 | D91: 2692.53 | E91: 780 | F91: 3472.53 | G91: 3195.690 | H91: 3195.690 | I91: 2415.690 | J91: 80.74639837 | K91: 81 | L91: -9 | M91: 100%
A92: 29.917 | B92: 2442.531 | C92: 91 | D92: 2722.447 | E92: 780 | F92: 3502.447 | G92: 3222.531 | H92: 3222.530 | I92: 2442.530 | J92: 81.64354715 | K92: 82 | L92: -9 | M92: 100%
A93: 29.917 | B93: 2469.372 | C93: 92 | D93: 2752.364 | E93: 780 | F93: 3532.364 | G93: 3249.372 | H93: 3249.370 | I93: 2469.370 | J93: 82.54069593 | K93: 83 | L93: -9 | M93: 99%
A94: 29.917 | B94: 2496.213 | C94: 93 | D94: 2782.281 | E94: 780 | F94: 3562.281 | G94: 3276.213 | H94: 3276.215 | I94: 2496.215 | J94: 83.43801183 | K94: 83 | L94: -10 | M94: 101%
A95: 29.917 | B95: 2523.054 | C95: 94 | D95: 2812.198 | E95: 780 | F95: 3592.198 | G95: 3303.054 | H95: 3303.055 | I95: 2523.055 | J95: 84.33516061 | K95: 84 | L95: -10 | M95: 100%
A96: 29.917 | B96: 2549.895 | C96: 95 | D96: 2842.115 | E96: 780 | F96: 3622.115 | G96: 3329.895 | H96: 3329.895 | I96: 2549.895 | J96: 85.23230939 | K96: 85 | L96: -10 | M96: 100%
A97: 29.917 | B97: 2576.736 | C97: 96 | D97: 2872.032 | E97: 780 | F97: 3652.032 | G97: 3356.736 | H97: 3356.735 | I97: 2576.735 | J97: 86.12945817 | K97: 86 | L97: -10 | M97: 100%
A98: 29.917 | B98: 2603.577 | C98: 97 | D98: 2901.949 | E98: 780 | F98: 3681.949 | G98: 3383.577 | H98: 3383.575 | I98: 2603.575 | J98: 87.02660695 | K98: 87 | L98: -10 | M98: 100%
A99: 29.917 | B99: 2630.418 | C99: 98 | D99: 2931.866 | E99: 780 | F99: 3711.866 | G99: 3410.418 | H99: 3410.420 | I99: 2630.420 | J99: 87.92392285 | K99: 88 | L99: -10 | M99: 100%
A100: 29.917 | B100: 2657.259 | C100: 99 | D100: 2961.783 | E100: 780 | F100: 3741.783 | G100: 3437.259 | H100: 3437.260 | I100: 2657.260 | J100: 88.82107163 | K100: 89 | L100: -10 | M100: 100%
A101: 29.917 | B101: 2684.1 | C101: 100 | D101: 2991.7 | E101: 780 | F101: 3771.7 | G101: 3464.100 | H101: 3464.100 | I101: 2684.100 | J101: 89.71822041 | K101: 90 | L101: -10 | M101: 100%
A102: 29.917 | B102: 2710.941 | C102: 101 | D102: 3021.617 | E102: 780 | F102: 3801.617 | G102: 3490.941 | H102: 3490.940 | I102: 2710.940 | J102: 90.61536919 | K102: 91 | L102: -10 | M102: 100%
A103: 29.917 | B103: 2737.782 | C103: 102 | D103: 3051.534 | E103: 780 | F103: 3831.534 | G103: 3517.782 | H103: 3517.780 | I103: 2737.780 | J103: 91.51251797 | K103: 92 | L103: -10 | M103: 99%
A104: 29.917 | B104: 2764.623 | C104: 103 | D104: 3081.451 | E104: 780 | F104: 3861.451 | G104: 3544.623 | H104: 3544.625 | I104: 2764.625 | J104: 92.40983387 | K104: 92 | L104: -11 | M104: 100%
A105: 29.917 | B105: 2791.464 | C105: 104 | D105: 3111.368 | E105: 780 | F105: 3891.368 | G105: 3571.464 | H105: 3571.465 | I105: 2791.465 | J105: 93.30698265 | K105: 93 | L105: -11 | M105: 100%
A106: 29.917 | B106: 2818.305 | C106: 105 | D106: 3141.285 | E106: 780 | F106: 3921.285 | G106: 3598.305 | H106: 3598.305 | I106: 2818.305 | J106: 94.20413143 | K106: 94 | L106: -11 | M106: 100%
A107: 29.917 | B107: 2845.146 | C107: 106 | D107: 3171.202 | E107: 780 | F107: 3951.202 | G107: 3625.146 | H107: 3625.145 | I107: 2845.145 | J107: 95.10128021 | K107: 95 | L107: -11 | M107: 100%
A108: 29.917 | B108: 2871.987 | C108: 107 | D108: 3201.119 | E108: 780 | F108: 3981.119 | G108: 3651.987 | H108: 3651.985 | I108: 2871.985 | J108: 95.99842899 | K108: 96 | L108: -11 | M108: 100%
A109: 29.917 | B109: 2898.828 | C109: 108 | D109: 3231.036 | E109: 780 | F109: 4011.036 | G109: 3678.828 | H109: 3678.830 | I109: 2898.830 | J109: 96.89574489 | K109: 97 | L109: -11 | M109: 100%
A110: 29.917 | B110: 2925.669 | C110: 109 | D110: 3260.953 | E110: 780 | F110: 4040.953 | G110: 3705.669 | H110: 3705.670 | I110: 2925.670 | J110: 97.79289367 | K110: 98 | L110: -11 | M110: 100%
A111: 29.917 | B111: 2952.51 | C111: 110 | D111: 3290.87 | E111: 780 | F111: 4070.87 | G111: 3732.510 | H111: 3732.510 | I111: 2952.510 | J111: 98.69004245 | K111: 99 | L111: -11 | M111: 100%
A112: 29.917 | B112: 2979.351 | C112: 111 | D112: 3320.787 | E112: 780 | F112: 4100.787 | G112: 3759.351 | H112: 3759.350 | I112: 2979.350 | J112: 99.58719123 | K112: 100 | L112: -11 | M112: 100%
A113: 29.917 | B113: 3006.192 | C113: 112 | D113: 3350.704 | E113: 780 | F113: 4130.704 | G113: 3786.192 | H113: 3786.190 | I113: 3006.190 | J113: 100.48434 | K113: 100 | L113: -12 | M113: 100%
A114: 29.917 | B114: 3033.033 | C114: 113 | D114: 3380.621 | E114: 780 | F114: 4160.621 | G114: 3813.033 | H114: 3813.035 | I114: 3033.035 | J114: 101.3816559 | K114: 101 | L114: -12 | M114: 100%
A115: 29.917 | B115: 3059.874 | C115: 114 | D115: 3410.538 | E115: 780 | F115: 4190.538 | G115: 3839.874 | H115: 3839.875 | I115: 3059.875 | J115: 102.2788047 | K115: 102 | L115: -12 | M115: 100%
A116: 29.917 | B116: 3086.715 | C116: 115 | D116: 3440.455 | E116: 780 | F116: 4220.455 | G116: 3866.715 | H116: 3866.715 | I116: 3086.715 | J116: 103.1759535 | K116: 103 | L116: -12 | M116: 100%
A117: 29.917 | B117: 3113.556 | C117: 116 | D117: 3470.372 | E117: 780 | F117: 4250.372 | G117: 3893.556 | H117: 3893.555 | I117: 3113.555 | J117: 104.0731022 | K117: 104 | L117: -12 | M117: 100%
A118: 29.917 | B118: 3140.397 | C118: 117 | D118: 3500.289 | E118: 780 | F118: 4280.289 | G118: 3920.397 | H118: 3920.395 | I118: 3140.395 | J118: 104.970251 | K118: 105 | L118: -12 | M118: 100%
A119: 29.917 | B119: 3167.238 | C119: 118 | D119: 3530.206 | E119: 780 | F119: 4310.206 | G119: 3947.238 | H119: 3947.240 | I119: 3167.240 | J119: 105.8675669 | K119: 106 | L119: -12 | M119: 100%
A120: 29.917 | B120: 3194.079 | C120: 119 | D120: 3560.123 | E120: 780 | F120: 4340.123 | G120: 3974.079 | H120: 3974.080 | I120: 3194.080 | J120: 106.7647157 | K120: 107 | L120: -12 | M120: 100%
A121: 29.917 | B121: 3220.92 | C121: 120 | D121: 3590.04 | E121: 780 | F121: 4370.04 | G121: 4000.920 | H121: 4000.920 | I121: 3220.920 | J121: 107.6618645 | K121: 108 | L121: -12 | M121: 100%
A122: 29.917 | B122: 3247.761 | C122: 121 | D122: 3619.957 | E122: 780 | F122: 4399.957 | G122: 4027.761 | H122: 4027.760 | I122: 3247.760 | J122: 108.5590133 | K122: 109 | L122: -12 | M122: 100%
A123: 29.917 | B123: 3274.602 | C123: 122 | D123: 3649.874 | E123: 780 | F123: 4429.874 | G123: 4054.602 | H123: 4054.600 | I123: 3274.600 | J123: 109.456162 | K123: 109 | L123: -13 | M123: 100%
A124: 29.917 | B124: 3301.443 | C124: 123 | D124: 3679.791 | E124: 780 | F124: 4459.791 | G124: 4081.443 | H124: 4081.445 | I124: 3301.445 | J124: 110.353478 | K124: 110 | L124: -13 | M124: 100%
A125: 29.917 | B125: 3328.284 | C125: 124 | D125: 3709.708 | E125: 780 | F125: 4489.708 | G125: 4108.284 | H125: 4108.285 | I125: 3328.285 | J125: 111.2506267 | K125: 111 | L125: -13 | M125: 100%
A126: 29.917 | B126: 3355.125 | C126: 125 | D126: 3739.625 | E126: 780 | F126: 4519.625 | G126: 4135.125 | H126: 4135.125 | I126: 3355.125 | J126: 112.1477755 | K126: 112 | L126: -13 | M126: 100%
A127: 29.917 | B127: 3381.966 | C127: 126 | D127: 3769.542 | E127: 780 | F127: 4549.542 | G127: 4161.966 | H127: 4161.965 | I127: 3381.965 | J127: 113.0449243 | K127: 113 | L127: -13 | M127: 100%
A128: 29.917 | B128: 3408.807 | C128: 127 | D128: 3799.459 | E128: 780 | F128: 4579.459 | G128: 4188.807 | H128: 4188.805 | I128: 3408.805 | J128: 113.9420731 | K128: 114 | L128: -13 | M128: 100%
A129: 29.917 | B129: 3435.648 | C129: 128 | D129: 3829.376 | E129: 780 | F129: 4609.376 | G129: 4215.648 | H129: 4215.650 | I129: 3435.650 | J129: 114.839389 | K129: 115 | L129: -13 | M129: 100%
A130: 29.917 | B130: 3462.489 | C130: 129 | D130: =C130*A130 -> 3859.293 | E130: 780 | F130: =E130+D130 -> 4639.293 | G130: =B130+E130 -> 4242.489 | H130: =ROUND((G130)/0.005,0)*0.005 -> 4242.490 | I130: =H130-E130 -> 3462.490 | J130: =I130/A130 -> 115.7365378 | K130: =ROUND(J130,0) -> 116 | L130: -13 | M130: =J130/K130 -> 100%
A131: =$A$2 -> 29.917 | B131: =$B$2*C131 -> 3489.33 | C131: 130 | D131: 3889.21 | E131: =$E$2 -> 780 | F131: 4669.21 | G131: 4269.330 | H131: 4269.330 | I131: 3489.330 | J131: 116.6336865 | K131: 117 | L131: =K131-C131 -> -13 | M131: 100%
A132: 29.917 | B132: 3516.171 | C132: 131 | D132: 3919.127 | E132: 780 | F132: 4699.127 | G132: 4296.171 | H132: 4296.170 | I132: 3516.170 | J132: 117.5308353 | K132: 118 | L132: -13 | M132: 100%
A133: 29.917 | B133: 3543.012 | C133: 132 | D133: 3949.044 | E133: 780 | F133: 4729.044 | G133: 4323.012 | H133: 4323.010 | I133: 3543.010 | J133: 118.4279841 | K133: 118 | L133: -14 | M133: 100%
A134: 29.917 | B134: 3569.853 | C134: 133 | D134: 3978.961 | E134: 780 | F134: 4758.961 | G134: 4349.853 | H134: 4349.855 | I134: 3569.855 | J134: 119.3253 | K134: 119 | L134: -14 | M134: 100%
A135: 29.917 | B135: 3596.694 | C135: 134 | D135: 4008.878 | E135: 780 | F135: 4788.878 | G135: 4376.694 | H135: 4376.695 | I135: 3596.695 | J135: 120.2224488 | K135: 120 | L135: -14 | M135: 100%
A136: 29.917 | B136: 3623.535 | C136: 135 | D136: 4038.795 | E136: 780 | F136: 4818.795 | G136: 4403.535 | H136: 4403.535 | I136: 3623.535 | J136: 121.1195976 | K136: 121 | L136: -14 | M136: 100%
A137: 29.917 | B137: 3650.376 | C137: 136 | D137: 4068.712 | E137: 780 | F137: 4848.712 | G137: 4430.376 | H137: 4430.375 | I137: 3650.375 | J137: 122.0167463 | K137: 122 | L137: -14 | M137: 100%
A138: 29.917 | B138: 3677.217 | C138: 137 | D138: 4098.629 | E138: 780 | F138: 4878.629 | G138: 4457.217 | H138: 4457.215 | I138: 3677.215 | J138: 122.9138951 | K138: 123 | L138: -14 | M138: 100%
A139: 29.917 | B139: 3704.058 | C139: 138 | D139: 4128.546 | E139: 780 | F139: 4908.546 | G139: 4484.058 | H139: 4484.060 | I139: 3704.060 | J139: 123.811211 | K139: 124 | L139: -14 | M139: 100%
A140: 29.917 | B140: 3730.899 | C140: 139 | D140: 4158.463 | E140: 780 | F140: 4938.463 | G140: 4510.899 | H140: 4510.900 | I140: 3730.900 | J140: 124.7083598 | K140: 125 | L140: -14 | M140: 100%
A141: 29.917 | B141: 3757.74 | C141: 140 | D141: 4188.38 | E141: 780 | F141: 4968.38 | G141: 4537.740 | H141: 4537.740 | I141: 3757.740 | J141: 125.6055086 | K141: 126 | L141: -14 | M141: 100%
A142: 29.917 | B142: 3784.581 | C142: 141 | D142: 4218.297 | E142: 780 | F142: 4998.297 | G142: 4564.581 | H142: 4564.580 | I142: 3784.580 | J142: 126.5026574 | K142: 127 | L142: -14 | M142: 100%
A143: 29.917 | B143: 3811.422 | C143: 142 | D143: 4248.214 | E143: 780 | F143: 5028.214 | G143: 4591.422 | H143: 4591.420 | I143: 3811.420 | J143: 127.3998061 | K143: 127 | L143: -15 | M143: 100%
A144: 29.917 | B144: 3838.263 | C144: 143 | D144: 4278.131 | E144: 780 | F144: 5058.131 | G144: 4618.263 | H144: 4618.265 | I144: 3838.265 | J144: 128.297122 | K144: 128 | L144: -15 | M144: 100%
A145: 29.917 | B145: 3865.104 | C145: 144 | D145: 4308.048 | E145: 780 | F145: 5088.048 | G145: 4645.104 | H145: 4645.105 | I145: 3865.105 | J145: 129.1942708 | K145: 129 | L145: -15 | M145: 100%
A146: 29.917 | B146: 3891.945 | C146: 145 | D146: 4337.965 | E146: 780 | F146: 5117.965 | G146: 4671.945 | H146: 4671.945 | I146: 3891.945 | J146: 130.0914196 | K146: 130 | L146: -15 | M146: 100%
A147: 29.917 | B147: 3918.786 | C147: 146 | D147: 4367.882 | E147: 780 | F147: 5147.882 | G147: 4698.786 | H147: 4698.785 | I147: 3918.785 | J147: 130.9885684 | K147: 131 | L147: -15 | M147: 100%
A148: 29.917 | B148: 3945.627 | C148: 147 | D148: 4397.799 | E148: 780 | F148: 5177.799 | G148: 4725.627 | H148: 4725.625 | I148: 3945.625 | J148: 131.8857172 | K148: 132 | L148: -15 | M148: 100%
A149: 29.917 | B149: 3972.468 | C149: 148 | D149: 4427.716 | E149: 780 | F149: 5207.716 | G149: 4752.468 | H149: 4752.470 | I149: 3972.470 | J149: 132.7830331 | K149: 133 | L149: -15 | M149: 100%
A150: 29.917 | B150: 3999.309 | C150: 149 | D150: 4457.633 | E150: 780 | F150: 5237.633 | G150: 4779.309 | H150: 4779.310 | I150: 3999.310 | J150: 133.6801818 | K150: 134 | L150: -15 | M150: 100%
A151: 29.917 | B151: 4026.15 | C151: 150 | D151: 4487.55 | E151: 780 | F151: 5267.55 | G151: 4806.150 | H151: 4806.150 | I151: 4026.150 | J151: 134.5773306 | K151: 135 | L151: -15 | M151: 100%
A152: 29.917 | B152: 4052.991 | C152: 151 | D152: 4517.467 | E152: 780 | F152: 5297.467 | G152: 4832.991 | H152: 4832.990 | I152: 4052.990 | J152: 135.4744794 | K152: 135 | L152: -16 | M152: 100%
A153: 29.917 | B153: 4079.832 | C153: 152 | D153: 4547.384 | E153: 780 | F153: 5327.384 | G153: 4859.832 | H153: 4859.830 | I153: 4079.830 | J153: 136.3716282 | K153: 136 | L153: -16 | M153: 100%
A154: 29.917 | B154: 4106.673 | C154: 153 | D154: 4577.301 | E154: 780 | F154: 5357.301 | G154: 4886.673 | H154: 4886.675 | I154: 4106.675 | J154: 137.2689441 | K154: 137 | L154: -16 | M154: 100%
A155: 29.917 | B155: 4133.514 | C155: 154 | D155: 4607.218 | E155: 780 | F155: 5387.218 | G155: 4913.514 | H155: 4913.515 | I155: 4133.515 | J155: 138.1660929 | K155: 138 | L155: -16 | M155: 100%
A156: 29.917 | B156: 4160.355 | C156: 155 | D156: 4637.135 | E156: 780 | F156: 5417.135 | G156: 4940.355 | H156: 4940.355 | I156: 4160.355 | J156: 139.0632416 | K156: 139 | L156: -16 | M156: 100%
A157: 29.917 | B157: 4187.196 | C157: 156 | D157: 4667.052 | E157: 780 | F157: 5447.052 | G157: 4967.196 | H157: 4967.195 | I157: 4187.195 | J157: 139.9603904 | K157: 140 | L157: -16 | M157: 100%
A158: 29.917 | B158: 4214.037 | C158: 157 | D158: 4696.969 | E158: 780 | F158: 5476.969 | G158: 4994.037 | H158: 4994.035 | I158: 4214.035 | J158: 140.8575392 | K158: 141 | L158: -16 | M158: 100%
A159: 29.917 | B159: 4240.878 | C159: 158 | D159: 4726.886 | E159: 780 | F159: 5506.886 | G159: 5020.878 | H159: 5020.880 | I159: 4240.880 | J159: 141.7548551 | K159: 142 | L159: -16 | M159: 100%
A160: 29.917 | B160: 4267.719 | C160: 159 | D160: 4756.803 | E160: 780 | F160: 5536.803 | G160: 5047.719 | H160: 5047.720 | I160: 4267.720 | J160: 142.6520039 | K160: 143 | L160: -16 | M160: 100%
A161: 29.917 | B161: 4294.56 | C161: 160 | D161: 4786.72 | E161: 780 | F161: 5566.72 | G161: 5074.560 | H161: 5074.560 | I161: 4294.560 | J161: 143.5491527 | K161: 144 | L161: -16 | M161: 100%
A162: 29.917 | B162: 4321.401 | C162: 161 | D162: 4816.637 | E162: 780 | F162: 5596.637 | G162: 5101.401 | H162: 5101.400 | I162: 4321.400 | J162: 144.4463014 | K162: 144 | L162: -17 | M162: 100%
A163: 29.917 | B163: 4348.242 | C163: 162 | D163: 4846.554 | E163: 780 | F163: 5626.554 | G163: 5128.242 | H163: 5128.240 | I163: 4348.240 | J163: 145.3434502 | K163: 145 | L163: -17 | M163: 100%
A164: 29.917 | B164: 4375.083 | C164: 163 | D164: 4876.471 | E164: 780 | F164: 5656.471 | G164: 5155.083 | H164: 5155.085 | I164: 4375.085 | J164: 146.2407661 | K164: 146 | L164: -17 | M164: 100%
A165: 29.917 | B165: 4401.924 | C165: 164 | D165: 4906.388 | E165: 780 | F165: 5686.388 | G165: 5181.924 | H165: 5181.925 | I165: 4401.925 | J165: 147.1379149 | K165: 147 | L165: -17 | M165: 100%
A166: 29.917 | B166: 4428.765 | C166: 165 | D166: 4936.305 | E166: 780 | F166: 5716.305 | G166: 5208.765 | H166: 5208.765 | I166: 4428.765 | J166: 148.0350637 | K166: 148 | L166: -17 | M166: 100%
A167: 29.917 | B167: 4455.606 | C167: 166 | D167: 4966.222 | E167: 780 | F167: 5746.222 | G167: 5235.606 | H167: 5235.605 | I167: 4455.605 | J167: 148.9322125 | K167: 149 | L167: -17 | M167: 100%
A168: 29.917 | B168: 4482.447 | C168: 167 | D168: 4996.139 | E168: 780 | F168: 5776.139 | G168: 5262.447 | H168: 5262.445 | I168: 4482.445 | J168: 149.8293612 | K168: 150 | L168: -17 | M168: 100%
A169: 29.917 | B169: 4509.288 | C169: 168 | D169: 5026.056 | E169: 780 | F169: 5806.056 | G169: 5289.288 | H169: 5289.290 | I169: 4509.290 | J169: 150.7266771 | K169: 151 | L169: -17 | M169: 100%
A170: 29.917 | B170: 4536.129 | C170: 169 | D170: 5055.973 | E170: 780 | F170: 5835.973 | G170: 5316.129 | H170: 5316.130 | I170: 4536.130 | J170: 151.6238259 | K170: 152 | L170: -17 | M170: 100%
A171: 29.917 | B171: 4562.97 | C171: 170 | D171: 5085.89 | E171: 780 | F171: 5865.89 | G171: 5342.970 | H171: 5342.970 | I171: 4562.970 | J171: 152.5209747 | K171: 153 | L171: -17 | M171: 100%
A172: 29.917 | B172: 4589.811 | C172: 171 | D172: 5115.807 | E172: 780 | F172: 5895.807 | G172: 5369.811 | H172: 5369.810 | I172: 4589.810 | J172: 153.4181235 | K172: 153 | L172: -18 | M172: 100%
A173: 29.917 | B173: 4616.652 | C173: 172 | D173: 5145.724 | E173: 780 | F173: 5925.724 | G173: 5396.652 | H173: 5396.650 | I173: 4616.650 | J173: 154.3152723 | K173: 154 | L173: -18 | M173: 100%
A174: 29.917 | B174: 4643.493 | C174: 173 | D174: 5175.641 | E174: 780 | F174: 5955.641 | G174: 5423.493 | H174: 5423.495 | I174: 4643.495 | J174: 155.2125882 | K174: 155 | L174: -18 | M174: 100%
A175: 29.917 | B175: 4670.334 | C175: 174 | D175: 5205.558 | E175: 780 | F175: 5985.558 | G175: 5450.334 | H175: 5450.335 | I175: 4670.335 | J175: 156.1097369 | K175: 156 | L175: -18 | M175: 100%
A176: 29.917 | B176: 4697.175 | C176: 175 | D176: 5235.475 | E176: 780 | F176: 6015.475 | G176: 5477.175 | H176: 5477.175 | I176: 4697.175 | J176: 157.0068857 | K176: 157 | L176: -18 | M176: 100%
A177: 29.917 | B177: 4724.016 | C177: 176 | D177: 5265.392 | E177: 780 | F177: 6045.392 | G177: 5504.016 | H177: 5504.015 | I177: 4724.015 | J177: 157.9040345 | K177: 158 | L177: -18 | M177: 100%
A178: 29.917 | B178: 4750.857 | C178: 177 | D178: 5295.309 | E178: 780 | F178: 6075.309 | G178: 5530.857 | H178: 5530.855 | I178: 4750.855 | J178: 158.8011833 | K178: 159 | L178: -18 | M178: 100%
A179: 29.917 | B179: 4777.698 | C179: 178 | D179: 5325.226 | E179: 780 | F179: 6105.226 | G179: 5557.698 | H179: 5557.700 | I179: 4777.700 | J179: 159.6984992 | K179: 160 | L179: -18 | M179: 100%
A180: 29.917 | B180: 4804.539 | C180: 179 | D180: 5355.143 | E180: 780 | F180: 6135.143 | G180: 5584.539 | H180: 5584.540 | I180: 4804.540 | J180: 160.595648 | K180: 161 | L180: -18 | M180: 100%
A181: 29.917 | B181: 4831.38 | C181: 180 | D181: 5385.06 | E181: 780 | F181: 6165.06 | G181: 5611.380 | H181: 5611.380 | I181: 4831.380 | J181: 161.4927967 | K181: 161 | L181: -19 | M181: 100%
A182: 29.917 | B182: 4858.221 | C182: 181 | D182: 5414.977 | E182: 780 | F182: 6194.977 | G182: 5638.221 | H182: 5638.220 | I182: 4858.220 | J182: 162.3899455 | K182: 162 | L182: -19 | M182: 100%
A183: 29.917 | B183: 4885.062 | C183: 182 | D183: 5444.894 | E183: 780 | F183: 6224.894 | G183: 5665.062 | H183: 5665.060 | I183: 4885.060 | J183: 163.2870943 | K183: 163 | L183: -19 | M183: 100%
A184: 29.917 | B184: 4911.903 | C184: 183 | D184: 5474.811 | E184: 780 | F184: 6254.811 | G184: 5691.903 | H184: 5691.905 | I184: 4911.905 | J184: 164.1844102 | K184: 164 | L184: -19 | M184: 100%
A185: 29.917 | B185: 4938.744 | C185: 184 | D185: 5504.728 | E185: 780 | F185: 6284.728 | G185: 5718.744 | H185: 5718.745 | I185: 4938.745 | J185: 165.081559 | K185: 165 | L185: -19 | M185: 100%
A186: 29.917 | B186: 4965.585 | C186: 185 | D186: 5534.645 | E186: 780 | F186: 6314.645 | G186: 5745.585 | H186: 5745.585 | I186: 4965.585 | J186: 165.9787078 | K186: 166 | L186: -19 | M186: 100%
A187: 29.917 | B187: 4992.426 | C187: 186 | D187: 5564.562 | E187: 780 | F187: 6344.562 | G187: 5772.426 | H187: 5772.425 | I187: 4992.425 | J187: 166.8758565 | K187: 167 | L187: -19 | M187: 100%
A188: 29.917 | B188: 5019.267 | C188: 187 | D188: 5594.479 | E188: 780 | F188: 6374.479 | G188: 5799.267 | H188: 5799.265 | I188: 5019.265 | J188: 167.7730053 | K188: 168 | L188: -19 | M188: 100%
A189: 29.917 | B189: 5046.108 | C189: 188 | D189: 5624.396 | E189: 780 | F189: 6404.396 | G189: 5826.108 | H189: 5826.110 | I189: 5046.110 | J189: 168.6703212 | K189: 169 | L189: -19 | M189: 100%
A190: 29.917 | B190: 5072.949 | C190: 189 | D190: 5654.313 | E190: 780 | F190: 6434.313 | G190: 5852.949 | H190: 5852.950 | I190: 5072.950 | J190: 169.56747 | K190: 170 | L190: -19 | M190: 100%
A191: 29.917 | B191: 5099.79 | C191: 190 | D191: 5684.23 | E191: 780 | F191: 6464.23 | G191: 5879.790 | H191: 5879.790 | I191: 5099.790 | J191: 170.4646188 | K191: 170 | L191: -20 | M191: 100%
A192: 29.917 | B192: 5126.631 | C192: 191 | D192: 5714.147 | E192: 780 | F192: 6494.147 | G192: 5906.631 | H192: 5906.630 | I192: 5126.630 | J192: 171.3617676 | K192: 171 | L192: -20 | M192: 100%
A193: 29.917 | B193: 5153.472 | C193: 192 | D193: 5744.064 | E193: 780 | F193: 6524.064 | G193: 5933.472 | H193: 5933.470 | I193: 5153.470 | J193: 172.2589163 | K193: 172 | L193: -20 | M193: 100%
A194: 29.917 | B194: 5180.313 | C194: 193 | D194: =C194*A194 -> 5773.981 | E194: 780 | F194: =E194+D194 -> 6553.981 | G194: =B194+E194 -> 5960.313 | H194: =ROUND((G194)/0.005,0)*0.005 -> 5960.315 | I194: =H194-E194 -> 5180.315 | J194: =I194/A194 -> 173.1562322 | K194: =ROUND(J194,0) -> 173 | L194: -20 | M194: =J194/K194 -> 100%
A195: =$A$2 -> 29.917 | B195: =$B$2*C195 -> 5207.154 | C195: 194 | D195: 5803.898 | E195: =$E$2 -> 780 | F195: 6583.898 | G195: 5987.154 | H195: 5987.155 | I195: 5207.155 | J195: 174.053381 | K195: 174 | L195: =K195-C195 -> -20 | M195: 100%
A196: 29.917 | B196: 5233.995 | C196: 195 | D196: 5833.815 | E196: 780 | F196: 6613.815 | G196: 6013.995 | H196: 6013.995 | I196: 5233.995 | J196: 174.9505298 | K196: 175 | L196: -20 | M196: 100%
A197: 29.917 | B197: 5260.836 | C197: 196 | D197: 5863.732 | E197: 780 | F197: 6643.732 | G197: 6040.836 | H197: 6040.835 | I197: 5260.835 | J197: 175.8476786 | K197: 176 | L197: -20 | M197: 100%
A198: 29.917 | B198: 5287.677 | C198: 197 | D198: 5893.649 | E198: 780 | F198: 6673.649 | G198: 6067.677 | H198: 6067.675 | I198: 5287.675 | J198: 176.7448274 | K198: 177 | L198: -20 | M198: 100%
A199: 29.917 | B199: 5314.518 | C199: 198 | D199: 5923.566 | E199: 780 | F199: 6703.566 | G199: 6094.518 | H199: 6094.520 | I199: 5314.520 | J199: 177.6421433 | K199: 178 | L199: -20 | M199: 100%
A200: 29.917 | B200: 5341.359 | C200: 199 | D200: 5953.483 | E200: 780 | F200: 6733.483 | G200: 6121.359 | H200: 6121.360 | I200: 5341.360 | J200: 178.539292 | K200: 179 | L200: -20 | M200: 100%
... 177 more rows

Sheet BDD
A1: CodArt TXT | B1: Designation | C1: TailleCarton | D1: Colisage | F1: Liste
A2: 1 | B2: DECO VITRE CONTOUR ARG GM | C2: T4 | D2: 150 | F2: CONSOMMABLE_OUI
A3: 100459 | B3: BOLDUC X1 100MX5MM BRILL UNI | C3: T4 | D3: 70 | F3: CONSOMMABLE_NON
A4: 100535 | B4: BOLDUC X1 40MX10MM MAT UNI | C4: T4 | D4: 70 | F4: TRUE
A5: 100536 | B5: BOLDUC X1 40MX10MM BRILL HOLO | C5: T4 | D5: 70 | F5: FALSE
A6: 100801 | B6: ELE INT LUC CLI X100 5M 3ASSTS | C6: T2 | D6: 18 | F6: VRAC_OUI
A7: 100802 | B7: ELE INT LUC CLI X100 5M 4ASSTS | C7: T2 | D7: 18 | F7: VRAC_NON
A8: 100945 | B8: ELE INT LAM FIX X20 2M | C8: T2 | D8: 50
A9: 100947 | B9: ELE INT LAM FIX X50 5M | C9: T2 | D9: 30
A10: 100948 | B10: ELE INT LAM FIX X50 PAILL | C10: T2 | D10: 30 | F10: Paramètre filiale min : | H10: =IF(G14>=G13,ROUNDUP(-(G14*G12),0),0) -> -2
A11: 100949 | B11: ELE INT LAM CLI X50 5M | C11: T2 | D11: 30 | F11: Paramètre filiale max : | H11: =IF(G14>=G13,ROUNDUP((G14*G12),0),0) -> 2
A12: 100952 | B12: ELE EXT LUC 8F X100 4M | C12: T2 | D12: 16 | F12: Tolérance | G12: 2%
A13: 101026 | B13: DECO VITRE ELECTRO PAILLETTE | C13: T4 | D13: 140 | F13: seuil min | G13: 50
A14: 101382 | B14: ELE EXT LUC 8F X180 7.2M | C14: T2 | D14: 12 | F14: colisage | G14: ='ecran utilisateur'!E4 -> 70
A15: 101383 | B15: ELE EXT LUC 8F X240 9.6M | C15: T2 | D15: 10
A16: 101384 | B16: ELE INT LUC CLI X50 2.5M | C16: T2 | D16: 36
A17: 101386 | B17: ELE EXT LED 8F X60 4.8 BW FORM | C17: T2 | D17: 12
A18: 101390 | B18: ELE EXT LED 8F X120 9.6 | C18: T2 | D18: 14
A19: 101392 | B19: ELE INT FO LAM FIX X20 BOULE | C19: T2 | D19: 12
A20: 101485 | B20: BOLDUC X1 40MX10MM PAILLETTE | C20: T4 | D20: 70
A21: 101486 | B21: BOLDUC X1 40MX10MM CRINKLE | C21: T4 | D21: 70
A22: 101492 | B22: CHEVEUX ANGE 21G IRRI POLAIRE | C22: T1 | D22: 130
A23: 101506 | B23: CONFETTIS 30G X6 FORMES TRAD | C23: T2 | D23: 120
A24: 101512 | B24: PINCE MINI X12 FEUTR COUL | C24: T1 | D24: 200
A25: 101513 | B25: PINCE MINI X12 RESINE PERS | C25: T3 | D25: 80
A26: 101523 | B26: PINCE ANIMAL X3 PAPI PERL TRAD | C26: T1 | D26: 120
A27: 101524 | B27: CONFETTIS 40G X1 ETOILE TRAD | C27: T2 | D27: 150
A28: 101587 | B28: PINCE MINI X12 RESINE FORME | C28: T2 | D28: 80
A29: 101633 | B29: ELE EXT LED 8F X60 4.8 BWM 3MM | C29: T2 | D29: 18
A30: 101634 | B30: ELE EXT LED 8F X60 4.8 BWM 5MM | C30: T2 | D30: 15
A31: 101635 | B31: ELE SOLAIRE LED 1F X60 6M | C31: T2 | D31: 15
A32: 101664 | B32: BOLDUC X1 40MX10MM DECO COUL | C32: T4 | D32: 70
A33: 101665 | B33: BOLDUC X1 40MX10MM ETOILE COUL | C33: T4 | D33: 70
A34: 101666 | B34: BOLDUC X1 40MX10MM DECO RLF NA | C34: T4 | D34: 70
A35: 101668 | B35: BOLDUC X1 80M 5MM BICOLOR | C35: T4 | D35: 70
A36: 101680 | B36: DECO VITRE ELECTRO PAILL 4ASST | C36: T4 | D36: 100
A37: 101769 | B37: PINCE MINI X9 RESINE FORM PAIL | C37: T2 | D37: 100
A38: 101786 | B38: COMPOS RESINE VILLAGE PERS X3 | C38: T2 | D38: 40
A39: 101787 | B39: COMPOS RESINE VILLAGE PERS X4 | C39: T2 | D39: 40
A40: 101790 | B40: BANDEROLE X1 PN BN FEUTRINE | C40: T1 | D40: 120
A41: 101791 | B41: STICKER FEUTRINE X18 | C41: T2 | D41: 200
A42: 101870 | B42: ELE INT LED CLI X50 2.5M | C42: T2 | D42: 32
A43: 101871 | B43: ELE INT LED CLI X100 5M | C43: T2 | D43: 18
A44: 101872 | B44: ELE EXT LED 8F X160 8M MLTI | C44: T2 | D44: 10
A45: 101873 | B45: ELE EXT LED 8F X160 8M BLE BLC | C45: T2 | D45: 10
A46: 101874 | B46: ELE SOLAIRE LED 1F X100 | C46: T2 | D46: 10
A47: 101875 | B47: ELE INT FO LED CLIG X50 DIAM | C47: T2 | D47: 24
A48: 101877 | B48: ELE INT LED FIX X20 PILE | C48: T2 | D48: 70
A49: 101878 | B49: ELE INT LED FIX X40 PILE | C49: T2 | D49: 72
A50: 101893 | B50: STICKER X18 FORM IRRIS POLAIRE | C50: T2 | D50: 300
A51: 101898 | B51: SUJET BLANC X1 LED PM | C51: T2 | D51: 60
A52: 101903 | B52: BOUGIE CH.PLAT X3 LED ND TD | C52: T2 | D52: 125
A53: 101985 | B53: PAILLETTE X4 TRAD | C53: T3 | D53: 60
A54: 101988 | B54: PAILLETTE X9 PM MULTICOULEUR | C54: T2 | D54: 60
A55: 101991 | B55: CONFETTIS X1 TUBE PM MULTIFORM | C55: T3 | D55: 150
A56: 102001 | B56: BOULE NEIGE X1 PM PERS PIED | C56: T3 | D56: 36
A57: 102002 | B57: BOULE NEIGE X1 PM PERSONNAGE | C57: T3 | D57: 42
A58: 102004 | B58: GALET X12 PM MOT OR ARGENT | C58: T3 | D58: 40
A59: 102025 | B59: DECO VITRE GEL OPAQUE PAILL 9 | C59: T3 | D59: 100
A60: 102026 | B60: DECO VITRE GEL OPAQ PAILL 14 | C60: T4 | D60: 60
A61: 102028 | B61: DECO VITRE PAILLETTE PERLE GM | C61: T4 | D61: 100
A62: 102030 | B62: BOLDUC X6 10MX5MM BRILL HOLO | C62: T4 | D62: 80
A63: 102031 | B63: BOLDUC X1 40MX10MM BRILL ECRIT | C63: T4 | D63: 70
A64: 102033 | B64: BOLDUC NOEUD X9 MULTICOUL | C64: T1 | D64: 250
A65: 102128 | B65: PN X1 RESINE AVEC ENFANT GM | C65: T2 | D65: 30
A66: 102137 | B66: PINCE MINI X12 RESIN FLOC PAIL | C66: T2 | D66: 50
A67: 102156 | B67: BOUGIE CH.PLAT X9 COUL CONFETT | C67: T3 | D67: 48
A68: 102157 | B68: BOUGIE CH.PLAT X9 PAILL TRAD | C68: T3 | D68: 40
A69: 102158 | B69: BOUGIE CH.PLAT X6 DECO PAILL | C69: T3 | D69: 64
A70: 102164 | B70: CHEM TABLE 35X400 OA TRAD | C70: T1 | D70: 80
A71: 102265 | B71: PHOTOPH X1 VERRE DESSIN PN BN | C71: T3 | D71: 30
A72: 102271 | B72: BOULE NEIGE X1 GM PN RELIEF | C72: T3 | D72: 20
A73: 102274 | B73: BOULE VERRE X1 LED FORM FENE | C73: T2 | D73: 27
A74: 102283 | B74: SAPIN GOMME X1 LED PM | C74: T2 | D74: 45
A75: 102300 | B75: BOULE 60MM X6 PAILL POLAIRE | C75: T1 | D75: 45
A76: 102304 | B76: ELE INT FO LED COL X8 PIL | C76: T2 | D76: 36
A77: 102305 | B77: BOUGIE CH.PLAT X3 LED FLEUR PO | C77: T2 | D77: 120
A78: 102307 | B78: ELE INT FO LED CLIG X40 ETO PM | C78: T2 | D78: 24
A79: 102309 | B79: ELE INT FO LED CLIG X40 PERLE | C79: T2 | D79: 16
A80: 102321 | B80: SUSP BN PN BOIS FOURRURE NAT | C80: T1 | D80: 80
A81: 102322 | B81: SUSP BN BOIS ECHARPE NATURE | C81: T1 | D81: 100
A82: 102324 | B82: SUSP X4 FORME GM TRAD | C82: T2 | D82: 50
A83: 102327 | B83: CHEM TABLE 36X500 ARA TRAD | C83: T1 | D83: 60
A84: 102329 | B84: DECO VITRE ELECTRO PAILL 4ASST | C84: T4 | D84: 150
A85: 102339 | B85: SUSP X6 COEUR BLANC PAILL CONF | C85: T1 | D85: 90
A86: 102377 | B86: BONNET PN LUMIN F.OPT MOT SAP | C86: T1 | D86: 120
A87: 102378 | B87: BONNET PN LUMIN F.OPT MOT DESS | C87: T1 | D87: 100
A88: 102383 | B88: BONNET PN LUMIN F.OPT DESS X3 | C88: T1 | D88: 100
A89: 102394 | B89: CIMIER GM ETO AJOURE PAILL TD | C89: T1 | D89: 40
A90: 102395 | B90: CIMIER GM ETO DOUBLE BRILL TD | C90: T1 | D90: 40
A91: 102397 | B91: GUILDE 2M 4BR 120MM MULTICOUL | C91: T1 | D91: 50
A92: 102398 | B92: GUILDE 2M 6BR 50MM CONF MLTCO | C92: T1 | D92: 100
A93: 102399 | B93: GUILDE 2M 6BR 100MM CARNAVAL | C93: T1 | D93: 40
A94: 102400 | B94: GUILDE 2M 6BR 100MM FLASHY | C94: T1 | D94: 40
A95: 102410 | B95: GUILDE 2M 6BR 100MM CLAS TRAD | C95: T1 | D95: 40
A96: 102411 | B96: SUSP X24 MULTI PLAST CARNAV | C96: T1 | D96: 60
A97: 102419 | B97: DECO VITRE CONTOUR ARG GM | C97: T4 | D97: 200
A98: 102420 | B98: DECO VITRE CONTOUR OR GM | C98: T3 | D98: 160
A99: 102421 | B99: ETIQ KDO X60 CAHIER | C99: T3 | D99: 200
A100: 102422 | B100: ETIQ KDO X12_16_20_27 | C100: T3 | D100: 100
A101: 102423 | B101: ETIQ KDO X42 FEUILLET | C101: T2 | D101: 150
A102: 102424 | B102: DECO VITRE ELECTRO GM PAILL | C102: T4 | D102: 150
A103: 102425 | B103: DECO VITRE ELECTRO GM LASER | C103: T4 | D103: 150
A104: 102427 | B104: DECO VITRE ELECTRO PAILL 4ASST | C104: T4 | D104: 150
A105: 102432 | B105: STICKER BRILLANT PM COL1 | C105: T3 | D105: 150
A106: 102433 | B106: STICKER BRILLANT BANDEAU PM1 | C106: T3 | D106: 400
A107: 102436 | B107: DECO VITRE RELIEF GM | C107: T4 | D107: 80
A108: 102437 | B108: DECO VITRE RELIEF PM | C108: T3 | D108: 120
A109: 102438 | B109: DECO VITRE PAILLETTE NEIGE | C109: T4 | D109: 100
A110: 102440 | B110: ETIQ KDO X52 CAHIER | C110: T3 | D110: 200
A111: 102441 | B111: STICKER X50 HOLOGRAMME PM | C111: T3 | D111: 150
A112: 102442 | B112: ETIQ KDO X14 PM | C112: T3 | D112: 400
A113: 102443 | B113: ETIQ KDO X36 DECOR | C113: T3 | D113: 150
A114: 102444 | B114: STICKER X100 FEUILLET | C114: T3 | D114: 100
A115: 102445 | B115: DECO VITRE ELECTRO PAILLETTE | C115: T4 | D115: 150
A116: 102447 | B116: BOUGIE FLAMBEAU X4 SPIRAL TRAD | C116: T3 | D116: 30
A117: 102461 | B117: SUSP BOULE VERRE X1 LED NEIGE | C117: T2 | D117: 45
A118: 102463 | B118: LANTERNE CERAM X1 LED RECT GM | C118: T2 | D118: 36
A119: 102470 | B119: BOUGIE CERAM X1 LED | C119: T3 | D119: 24
A120: 102524 | B120: DECO VITRE GEL MM MULTI | C120: T3 | D120: 100
A121: 102525 | B121: DECO VITRE GEL OPAQ PAIL 9 | C121: T3 | D121: 100
A122: 102526 | B122: DECO VITRE GEL OPAQ PAIL 12 | C122: T4 | D122: 100
A123: 102527 | B123: DECO VITRE GEL OPAQ PAIL 14 | C123: T4 | D123: 100
A124: 102528 | B124: DECO VITRE GEL OPAQ PAIL 16 | C124: T4 | D124: 100
A125: 102529 | B125: ELE EXT LED 8F X60 4.8 BWM 3MM | C125: T2 | D125: 16
A126: 102532 | B126: ELE INT FO LED FIX X40 FLOCON | C126: T2 | D126: 16
A127: 102533 | B127: ELE INT LED FIX X20 2M | C127: T2 | D127: 48
A128: 102534 | B128: ELE EXT LUC 8F X100 4M | C128: T2 | D128: 16
A129: 102535 | B129: ELE EXT LUC 8F X180 7.2M | C129: T2 | D129: 12
A130: 102536 | B130: ELE EXT LUC 8F X240 9.6M | C130: T2 | D130: 10
A131: 102542 | B131: GUILDE 2M 6BR 60MM BIC ARTIC | C131: T1 | D131: 100
A132: 102557 | B132: GUILDE 2M 8BR 80MM MULTICOUL | C132: T1 | D132: 40
A133: 102564 | B133: BOULE 40MM X10 MIXTE TRAD | C133: T1 | D133: 72
A134: 102565 | B134: BOULE 40MM X10 MIXTE MULTI | C134: T1 | D134: 72
A135: 102566 | B135: BOULE 30MM X12 MIXTE TRAD | C135: T1 | D135: 170
A136: 102567 | B136: BOULE 30MM X12 MIXTE MULTI | C136: T1 | D136: 170
A137: 102574 | B137: BOULE 40MM X16 MIXTE MULTI | C137: T1 | D137: 56
A138: 102600 | B138: CIMIER GM ETO DOUBL PAILL TRAD | C138: T4 | D138: 100
A139: 102622 | B139: BOULE 40MM X10 TUBE POLAIRE | C139: T1 | D139: 64
A140: 102624 | B140: BOULE 30MM X12 TUBE POLAIRE | C140: T2 | D140: 80
A141: 102626 | B141: BOULE 20MM X12 PAILL NA | C141: T1 | D141: 200
A142: 102628 | B142: BOULE 20MM X12 PAILL NAT | C142: T1 | D142: 200
A143: 102629 | B143: BOULE 20MM X12 PAILL MULTI | C143: T1 | D143: 200
A144: 102634 | B144: BN PN X1 RESINE SKI MM | C144: T3 | D144: 48
A145: 102638 | B145: CIMIER GM ETO CONTOUR MULTICO | C145: T1 | D145: 70
A146: 102644 | B146: PINCE MINI X9 SAP ET FLO MULTI | C146: T2 | D146: 80
A147: 102653 | B147: BOUGIE CH.PLAT X9 PAILL CARNAV | C147: T3 | D147: 40
A148: 102654 | B148: BOUGIE CH.PLAT X9 PAILL NA | C148: T3 | D148: 40
A149: 102655 | B149: BOUGIE CH.PLAT X9 PAILL ARTIC | C149: T3 | D149: 40
A150: 102656 | B150: BOUGIE CH.PLAT X9 PAILL NAT | C150: T3 | D150: 40
A151: 102661 | B151: FORME DECO MOUSS PAILL TRAD | C151: T1 | D151: 150
A152: 102662 | B152: FORME DECO MOUSS PAILL MULTI | C152: T2 | D152: 100
A153: 102665 | B153: SUSP X6 SAP ETOI COEU PAIL MLT | C153: T2 | D153: 80
A154: 102671 | B154: BOULE NEIGE X1 PM PERS ROUGE | C154: T3 | D154: 48
A155: 102672 | B155: BOULE NEIGE X1 PM PERS TASSE | C155: T3 | D155: 35
A156: 102680 | B156: SUSP X6 COEUR PAILL CONF MULTI | C156: T1 | D156: 80
A157: 102695 | B157: SUSP X2 P.KDO CARRE NOEUD RO | C157: T2 | D157: 50
A158: 102696 | B158: SUSP X6 FLOCON PAILL TRAD | C158: T2 | D158: 60
A159: 102697 | B159: SUSP X6 FLOCON PAILL ARTIC | C159: T2 | D159: 100
A160: 102698 | B160: SUSP X6 FLOCON PAILL MULTI | C160: T2 | D160: 90
A161: 102701 | B161: PORTE MENU X1 SUJ RES PIC FORM | C161: T3 | D161: 150
A162: 102702 | B162: CHEM TABLE 36X500 ARA MULTICO | C162: T1 | D162: 60
A163: 102703 | B163: NAPPE 150X200 MULTI | C163: T1 | D163: 80
A164: 102705 | B164: CONFETTIS 30G X6 FORM ARTIC | C164: T2 | D164: 120
A165: 102709 | B165: CONFETTIS 40G X1 ETOILE XCO | C165: T2 | D165: 150
A166: 102712 | B166: CONFETTIS 40G X1 ETOILE BICOL | C166: T2 | D166: 150
A167: 102745 | B167: STICKER RELIEF METAL ARGENT PM | C167: T3 | D167: 180
A168: 102746 | B168: STICKER BRILLANT GM HOLO | C168: T3 | D168: 160
A169: 102747 | B169: STICKER BRILLANT PM COL2 | C169: T3 | D169: 150
A170: 102748 | B170: STICKER BRILLANT BANDEAU PM2 | C170: T3 | D170: 360
A171: 102757 | B171: ETIQ KDO X44 + STICKER X2 | C171: T2 | D171: 80
A172: 102761 | B172: DECO VITRE ELECTRO PAILL CHIEN | C172: T4 | D172: 150
A173: 102762 | B173: DECO VITRE ELECTRO OR BLEU PAI | C173: T4 | D173: 150
A174: 102770 | B174: BONNET DE NOEL | C174: T1 | D174: 120
A175: 102772 | B175: DECO VITRE GEL OPAQUE PAILL 9 | C175: T3 | D175: 100
A176: 102775 | B176: GUILDE 2M 6BR 100MM ETOIL BA | C176: T1 | D176: 40
A177: 102776 | B177: GUILDE 2M 6BR 80MM ETOI ARTIC | C177: T1 | D177: 40
A178: 102779 | B178: ELE SOLAIRE LED 2F X100 | C178: T2 | D178: 10
A179: 102780 | B179: ELE SOLAIRE LED 2F X60 6M | C179: T2 | D179: 15
A180: 102781 | B180: ELE INT LED FIX X20 PILE | C180: T2 | D180: 100
A181: 102782 | B181: LANTERNE CERAM X1 LED PM | C181: T3 | D181: 24
A182: 102783 | B182: GUILDE 2,7M 4BR 100MM SUJ VERT | C182: T1 | D182: 40
A183: 102787 | B183: PORTE MENU X6 BOULE VERRE POL | C183: T1 | D183: 90
A184: 102788 | B184: BOULE MM MOUSS ARG POLAIRE | C184: T1 | D184: 50
A185: 102789 | B185: FLOCON X30 PLAST IRIS | C185: T1 | D185: 160
A186: 102790 | B186: DECO VITRE NEIGE GM | C186: T4 | D186: 120
A187: 102791 | B187: GUILDE 2M 4BR 80MM BOUCLE TRAD | C187: T1 | D187: 50
A188: 102795 | B188: GUILDE FORME POLAIRE 2M PAILL | C188: T2 | D188: 30
A189: 102796 | B189: CHEM TABLE 35X400 OA TRAD | C189: T1 | D189: 80
A190: 102797 | B190: CONFETTIS 5G X1 FLOCON ARTIC | C190: T2 | D190: 200
A191: 102799 | B191: CONFETTIS TUBE PM X1 MULTIMIX | C191: T3 | D191: 150
A192: 102800 | B192: PAILLETTE X1 BOX MULTICO | C192: T3 | D192: 150
A193: 102802 | B193: PAILLETTE X9 PM MULTICOULEUR | C193: T2 | D193: 50
A194: 102803 | B194: PINCE MINI X12 BOIS PERS BN | C194: T2 | D194: 100
A195: 102804 | B195: STICKER X10 FLOC MOUSS POLAIRE | C195: T1 | D195: 180
A196: 102805 | B196: STICKER X18 FORM IRRIS POLAIRE | C196: T2 | D196: 300
A197: 102806 | B197: SUSP X18 MULTI MOUSSE POLAIRE | C197: T1 | D197: 120
A198: 102811 | B198: SUSP OURSON GRIS NATURE | C198: T1 | D198: 60
A199: 102812 | B199: SUSP SUJ GOMME X1 LED BN RG | C199: T2 | D199: 60
A200: 102813 | B200: ANGE VERRE X1 LED CLOCHE | C200: T2 | D200: 105
... 4300 more rows

Sheet archivage
A1: Refs statut modifié | B1: Statut | C1: Poids | D1: Consommable | E1: Vrac | F1: V1 | G1: V2 | H1: V3 | I1: V4 | J1: V5 | K1: Timestamp | L1: Colisage | M1: mediane
A2: 100459 | B2: Non Pesable | C2: 29.917 | D2: FAUX | E2: VRAI | F2: 30.727 | G2: 30.568 | H2: 26.841 | I2: 31.069 | J2: 30.38 | K2: 2022-04-25T12:23:43 | L2: 50
A3: 100535 | B3: Pesable | C3: 43.8528 | D3: FAUX | E3: VRAI | F3: 42.789 | G3: 44.259 | H3: 44.413 | I3: 44.411 | J3: 43.392 | K3: 2022-04-25T12:24:37
A4: 100536 | B4: Non Pesable | C4: 34.1634 | D4: FAUX | E4: VRAI | F4: 32.78 | G4: 33.135 | H4: 33.126 | I4: 38.493 | J4: 33.283 | K4: 2022-04-25T12:24:40
A5: 100801 | B5: Non Pesable | C5: 29.917 | D5: FAUX | E5: VRAI | F5: 30.727 | G5: 30.568 | H5: 26.841 | I5: 31.069 | J5: 30.38 | K5: 2022-04-25T12:23:43
A6: 100802 | B6: Pesable | C6: 43.8528 | D6: FAUX | E6: VRAI | F6: 42.789 | G6: 44.259 | H6: 44.413 | I6: 44.411 | J6: 43.392 | K6: 2022-04-25T12:24:37
A7: 100945 | B7: Non Pesable | C7: 34.1634 | D7: FAUX | E7: VRAI | F7: 32.78 | G7: 33.135 | H7: 33.126 | I7: 38.493 | J7: 33.283 | K7: 2022-04-25T12:24:40
A8: 17189 | B8: Pesable | C8: 1 | D8: VRAI | E8: VRAI | F8: 1 | G8: 1 | H8: 1 | I8: 1 | J8: 1 | K8: 2022-04-26T14:53:33
A9: 100459 | B9: Non Pesable | C9: 29.917 | D9: FAUX | E9: VRAI | F9: 30.727 | G9: 30.568 | H9: 26.841 | I9: 31.069 | J9: 30.38 | K9: 2022-04-26T14:53:41
A10: 100535 | B10: Pesable | C10: 43.8528 | D10: FAUX | E10: VRAI | F10: 42.789 | G10: 44.259 | H10: 44.413 | I10: 44.411 | J10: 43.392 | K10: 2022-04-26T14:53:41
A11: 100536 | B11: Non Pesable | C11: 34.1634 | D11: FAUX | E11: VRAI | F11: 32.78 | G11: 33.135 | H11: 33.126 | I11: 38.493 | J11: 33.283 | K11: 2022-04-26T14:53:41
A12: 100801 | B12: Non Pesable | C12: 29.917 | D12: FAUX | E12: VRAI | F12: 30.727 | G12: 30.568 | H12: 26.841 | I12: 31.069 | J12: 30.38 | K12: 2022-04-26T14:53:41
A13: 100802 | B13: Pesable | C13: 43.8528 | D13: FAUX | E13: VRAI | F13: 42.789 | G13: 44.259 | H13: 44.413 | I13: 44.411 | J13: 43.392 | K13: 2022-04-26T14:53:41
A14: 100945 | B14: Non Pesable | C14: 34.1634 | D14: FAUX | E14: VRAI | F14: 32.78 | G14: 33.135 | H14: 33.126 | I14: 38.493 | J14: 33.283 | K14: 2022-04-26T14:53:43
A15: 17189 | B15: Pesable | C15: 1 | D15: VRAI | E15: VRAI | F15: 1 | G15: 1 | H15: 1 | I15: 1 | J15: 1 | K15: 2022-04-26T14:53:45
A16: 100459 | B16: Non Pesable | C16: 29.917 | D16: FAUX | E16: VRAI | F16: 30.727 | G16: 30.568 | H16: 26.841 | I16: 31.069 | J16: 30.38 | K16: 2022-04-27T16:58:53
A17: 100535 | B17: Pesable | C17: 43.8528 | D17: FAUX | E17: VRAI | F17: 42.789 | G17: 44.259 | H17: 44.413 | I17: 44.411 | J17: 43.392 | K17: 2022-04-27T16:58:53
A18: 100536 | B18: Non Pesable | C18: 34.1634 | D18: FAUX | E18: VRAI | F18: 32.78 | G18: 33.135 | H18: 33.126 | I18: 38.493 | J18: 33.283 | K18: 2022-04-27T16:58:55
A19: 100801 | B19: Non Pesable | C19: 29.917 | D19: FAUX | E19: VRAI | F19: 30.727 | G19: 30.568 | H19: 26.841 | I19: 31.069 | J19: 30.38 | K19: 2022-04-27T16:58:58
A20: 100802 | B20: Pesable | C20: 43.8528 | D20: FAUX | E20: VRAI | F20: 42.789 | G20: 44.259 | H20: 44.413 | I20: 44.411 | J20: 43.392 | K20: 2022-04-27T16:58:59
A21: 100945 | B21: Non Pesable | C21: 34.1634 | D21: FAUX | E21: VRAI | F21: 32.78 | G21: 33.135 | H21: 33.126 | I21: 38.493 | J21: 33.283 | K21: 2022-04-27T16:58:59
A22: 17189 | B22: Pesable | C22: 1 | D22: VRAI | E22: VRAI | F22: 1 | G22: 1 | H22: 1 | I22: 1 | J22: 1 | K22: 2022-04-27T16:58:59
A23: 100459 | B23: Non Pesable | C23: 29.917 | D23: FAUX | E23: VRAI | F23: 30.727 | G23: 30.568 | H23: 26.841 | I23: 31.069 | J23: 30.38 | K23: 2022-04-27T16:58:59
A24: 100535 | B24: Pesable | C24: 43.8528 | D24: FAUX | E24: VRAI | F24: 42.789 | G24: 44.259 | H24: 44.413 | I24: 44.411 | J24: 43.392 | K24: 2022-04-27T16:58:59
A25: 100536 | B25: Non Pesable | C25: 34.1634 | D25: FAUX | E25: VRAI | F25: 32.78 | G25: 33.135 | H25: 33.126 | I25: 38.493 | J25: 33.283 | K25: 2022-04-27T16:58:59
A26: 100801 | B26: Non Pesable | C26: 29.917 | D26: FAUX | E26: VRAI | F26: 30.727 | G26: 30.568 | H26: 26.841 | I26: 31.069 | J26: 30.38 | K26: 2022-04-27T16:58:59
A27: 100802 | B27: Pesable | C27: 43.8528 | D27: FAUX | E27: VRAI | F27: 42.789 | G27: 44.259 | H27: 44.413 | I27: 44.411 | J27: 43.392 | K27: 2022-04-27T16:59:03
A28: 100945 | B28: Non Pesable | C28: 34.1634 | D28: FAUX | E28: VRAI | F28: 32.78 | G28: 33.135 | H28: 33.126 | I28: 38.493 | J28: 33.283 | K28: 2022-04-27T16:59:05
A29: 17189 | B29: Pesable | C29: 1 | D29: VRAI | E29: VRAI | F29: 1 | G29: 1 | H29: 1 | I29: 1 | J29: 1 | K29: 2022-04-27T16:59:05
A30: 100459 | C30: 29.917 | D30: FAUX | E30: VRAI | F30: 30.727 | G30: 30.568 | H30: 26.841 | I30: 31.069 | J30: 30.38 | K30: 2022-04-27T17:44:31
A31: 100535 | C31: 43.8528 | D31: FAUX | E31: VRAI | F31: 42.789 | G31: 44.259 | H31: 44.413 | I31: 44.411 | J31: 43.392 | K31: 2022-04-27T17:44:31
A32: 100536 | C32: 34.1634 | D32: FAUX | E32: VRAI | F32: 32.78 | G32: 33.135 | H32: 33.126 | I32: 38.493 | J32: 33.283 | K32: 2022-04-27T17:44:32
A33: 100801 | C33: 29.917 | D33: FAUX | E33: VRAI | F33: 30.727 | G33: 30.568 | H33: 26.841 | I33: 31.069 | J33: 30.38 | K33: 2022-04-27T17:44:32
A34: 100802 | C34: 43.8528 | D34: FAUX | E34: VRAI | F34: 42.789 | G34: 44.259 | H34: 44.413 | I34: 44.411 | J34: 43.392 | K34: 2022-04-27T17:44:32
A35: 100945 | C35: 34.1634 | D35: FAUX | E35: VRAI | F35: 32.78 | G35: 33.135 | H35: 33.126 | I35: 38.493 | J35: 33.283 | K35: 2022-04-27T17:44:32
A36: 17189 | C36: 1 | D36: VRAI | E36: VRAI | F36: 1 | G36: 1 | H36: 1 | I36: 1 | J36: 1 | K36: 2022-04-27T17:44:32
A37: 100459 | C37: 29.917 | D37: FAUX | E37: VRAI | F37: 30.727 | G37: 30.568 | H37: 26.841 | I37: 31.069 | J37: 30.38 | K37: 2022-04-27T17:44:32
A38: 100535 | C38: 43.8528 | D38: FAUX | E38: VRAI | F38: 42.789 | G38: 44.259 | H38: 44.413 | I38: 44.411 | J38: 43.392 | K38: 2022-04-27T17:44:32
A39: 100536 | C39: 34.1634 | D39: FAUX | E39: VRAI | F39: 32.78 | G39: 33.135 | H39: 33.126 | I39: 38.493 | J39: 33.283 | K39: 2022-04-27T17:44:33
A40: 100801 | C40: 29.917 | D40: FAUX | E40: VRAI | F40: 30.727 | G40: 30.568 | H40: 26.841 | I40: 31.069 | J40: 30.38 | K40: 2022-04-27T17:44:33
A41: 100802 | C41: 43.8528 | D41: FAUX | E41: VRAI | F41: 42.789 | G41: 44.259 | H41: 44.413 | I41: 44.411 | J41: 43.392 | K41: 2022-04-27T17:44:33
A42: 100945 | C42: 34.1634 | D42: FAUX | E42: VRAI | F42: 32.78 | G42: 33.135 | H42: 33.126 | I42: 38.493 | J42: 33.283 | K42: 2022-04-27T17:44:33
A43: 17189 | C43: 1 | D43: VRAI | E43: VRAI | F43: 1 | G43: 1 | H43: 1 | I43: 1 | J43: 1 | K43: 2022-04-27T17:44:33
A44: 100459 | C44: 29.917 | D44: FAUX | E44: VRAI | F44: 30.727 | G44: 30.568 | H44: 26.841 | I44: 31.069 | J44: 30.38 | K44: 2022-04-27T17:44:33
A45: 100535 | C45: 43.8528 | D45: FAUX | E45: VRAI | F45: 42.789 | G45: 44.259 | H45: 44.413 | I45: 44.411 | J45: 43.392 | K45: 2022-04-27T17:44:33
A46: 100536 | C46: 34.1634 | D46: FAUX | E46: VRAI | F46: 32.78 | G46: 33.135 | H46: 33.126 | I46: 38.493 | J46: 33.283 | K46: 2022-04-27T17:44:34
A47: 100801 | C47: 29.917 | D47: FAUX | E47: VRAI | F47: 30.727 | G47: 30.568 | H47: 26.841 | I47: 31.069 | J47: 30.38 | K47: 2022-04-27T17:44:34
A48: 100802 | C48: 43.8528 | D48: FAUX | E48: VRAI | F48: 42.789 | G48: 44.259 | H48: 44.413 | I48: 44.411 | J48: 43.392 | K48: 2022-04-27T17:44:34
A49: 100945 | C49: 34.1634 | D49: FAUX | E49: VRAI | F49: 32.78 | G49: 33.135 | H49: 33.126 | I49: 38.493 | J49: 33.283 | K49: 2022-04-27T17:44:34
A50: 17189 | C50: 1 | D50: VRAI | E50: VRAI | F50: 1 | G50: 1 | H50: 1 | I50: 1 | J50: 1 | K50: 2022-04-27T17:44:34
A51: 100459 | C51: 29.917 | D51: FAUX | E51: VRAI | F51: 30.727 | G51: 30.568 | H51: 26.841 | I51: 31.069 | J51: 30.38 | K51: 2022-04-27T17:44:34
A52: 100535 | C52: 43.8528 | D52: FAUX | E52: VRAI | F52: 42.789 | G52: 44.259 | H52: 44.413 | I52: 44.411 | J52: 43.392 | K52: 2022-04-27T17:44:34
A53: 100536 | C53: 34.1634 | D53: FAUX | E53: VRAI | F53: 32.78 | G53: 33.135 | H53: 33.126 | I53: 38.493 | J53: 33.283 | K53: 2022-04-27T17:44:34
A54: 100801 | C54: 29.917 | D54: FAUX | E54: VRAI | F54: 30.727 | G54: 30.568 | H54: 26.841 | I54: 31.069 | J54: 30.38 | K54: 2022-04-27T17:44:35
A55: 100802 | C55: 43.8528 | D55: FAUX | E55: VRAI | F55: 42.789 | G55: 44.259 | H55: 44.413 | I55: 44.411 | J55: 43.392 | K55: 2022-04-27T17:44:35
A56: 100945 | C56: 34.1634 | D56: FAUX | E56: VRAI | F56: 32.78 | G56: 33.135 | H56: 33.126 | I56: 38.493 | J56: 33.283 | K56: 2022-04-27T17:44:35
A57: 17189 | C57: 1 | D57: VRAI | E57: VRAI | F57: 1 | G57: 1 | H57: 1 | I57: 1 | J57: 1 | K57: 2022-04-27T17:44:35
B1048572: Non Pesable
B1048573: Pesable
B1048574: Non Pesable
B1048575: Pesable
B1048576: Non Pesable | K1048576: 2022-04-27T17:32:33

Sheet picking
A1: N° article | B1: poids | C1: Code emplacement | D1: Code vie produit | E1: Désignation article | F1: Statut appli | G1: Statut donné | H1: realisation | I1: Colisage | K1: FAIT | L1: =COUNTIF(H:H,"ok") -> 0 | M1: NON FAIT | N1: =COUNTIF(H:H,"non fait") -> 629 | O1: =L1/(L1+N1) -> 0% | Q1: PESABLE | R1: =COUNTIF(archivage!B:B,"pesable") -> 14 | S1: NON PESABLE | T1: =COUNTIF(archivage!B:B,"non pesable") -> 19 | U1: =R1/(R1+T1) -> 42%
A2: 1 | B2: 0.1024772 | C2: 1A030610 | D2: FOIRE | E2: GOURDE 500ML KP | F2: 1 | G2: =IF(VLOOKUP(A2,archivage!A:B,2,FALSE)="non renseigné",1,IF(VLOOKUP(A2,archivage!A:B,2,FALSE)="pesable",2,3)) ->  | H2: =IF(ISNA(VLOOKUP(A2,archivage!A:B,1,FALSE)),"NON FAIT","OK") -> NON FAIT | I2: 60
A3: 530064 | B3: 0.2303988 | C3: 1A030610 | D3: TRAN-PX-PT | E3: HUILE AEROSOL 200ML TR* | F3: 2 | G3: =IF(VLOOKUP(A3,archivage!A:B,2,FALSE)="non renseigné",1,IF(VLOOKUP(A3,archivage!A:B,2,FALSE)="pesable",2,3)) ->  | H3: =IF(ISNA(VLOOKUP(A3,archivage!A:B,1,FALSE)),"NON FAIT","OK") -> NON FAIT | I3: 35
A4: 500088 | B4: 0.0470188 | C4: 1A030620 | D4: STOP | E4: CHAUSSE PIED TELESCOPIQUE | F4: 1 | G4: =IF(VLOOKUP(A4,archivage!A:B,2,FALSE)="non renseigné",1,IF(VLOOKUP(A4,archivage!A:B,2,FALSE)="pesable",2,3)) ->  | H4: =IF(ISNA(VLOOKUP(A4,archivage!A:B,1,FALSE)),"NON FAIT","OK") -> NON FAIT | I4: 100
A5: 500171 | B5: 0.1534388 | C5: 1A030620 | D5: FOIRE | E5: BALLE REBONDISSANTES X10 KP | F5: 2 | G5: =IF(VLOOKUP(A5,archivage!A:B,2,FALSE)="non renseigné",1,IF(VLOOKUP(A5,archivage!A:B,2,FALSE)="pesable",2,3)) ->  | H5: =IF(ISNA(VLOOKUP(A5,archivage!A:B,1,FALSE)),"NON FAIT","OK") -> NON FAIT | I5: 50
A6: 500213 | B6: 0.1069174 | C6: 1A030630 | D6: FOIRE | E6: CHAUSSETTE HOMME B39-42 X5 | F6: 3 | G6: =IF(VLOOKUP(A6,archivage!A:B,2,FALSE)="non renseigné",1,IF(VLOOKUP(A6,archivage!A:B,2,FALSE)="pesable",2,3)) ->  | H6: =IF(ISNA(VLOOKUP(A6,archivage!A:B,1,FALSE)),"NON FAIT","OK") -> NON FAIT | I6: 60
A7: 530092 | B7: 0.0429974 | C7: 1A030630 | D7: FOIRE | E7: PILE BOUTON CR X9 | F7: 1 | G7: =IF(VLOOKUP(A7,archivage!A:B,2,FALSE)="non renseigné",1,IF(VLOOKUP(A7,archivage!A:B,2,FALSE)="pesable",2,3)) ->  | H7: =IF(ISNA(VLOOKUP(A7,archivage!A:B,1,FALSE)),"NON FAIT","OK") -> NON FAIT | I7: 60
A8: 143473 | C8: 1B081530 | D8: STOP | E8: HUILE AEROSOL 200ML | G8: =IF(VLOOKUP(A8,archivage!A:B,2,FALSE)="non renseigné",1,IF(VLOOKUP(A8,archivage!A:B,2,FALSE)="pesable",2,3)) ->  | H8: =IF(ISNA(VLOOKUP(A8,archivage!A:B,1,FALSE)),"NON FAIT","OK") -> NON FAIT | I8: 35
A9: 500205 | B9: 0.1089664 | C9: 1A030640 | D9: FOIRE-FIN | E9: RAQUETTE SCRATCH+BALLE | F9: 1 | G9: =IF(VLOOKUP(A9,archivage!A:B,2,FALSE)="non renseigné",1,IF(VLOOKUP(A9,archivage!A:B,2,FALSE)="pesable",2,3)) ->  | H9: =IF(ISNA(VLOOKUP(A9,archivage!A:B,1,FALSE)),"NON FAIT","OK") -> NON FAIT | I9: 50
A10: 500057 | B10: 0.0164186 | C10: 1A030710 | D10: STOP | E10: PORTE PASSEPORT MESSAGE | F10: 1 | G10: =IF(VLOOKUP(A10,archivage!A:B,2,FALSE)="non renseigné",1,IF(VLOOKUP(A10,archivage!A:B,2,FALSE)="pesable",2,3)) ->  | H10: =IF(ISNA(VLOOKUP(A10,archivage!A:B,1,FALSE)),"NON FAIT","OK") -> NON FAIT | I10: 300
A11: 500182 | B11: 0.0457592 | C11: 1A030710 | D11: FOIRE | E11: CEINTURE RUNNING ETIRABLE CM | F11: 1 | G11: =IF(VLOOKUP(A11,archivage!A:B,2,FALSE)="non renseigné",1,IF(VLOOKUP(A11,archivage!A:B,2,FALSE)="pesable",2,3)) ->  | H11: =IF(ISNA(VLOOKUP(A11,archivage!A:B,1,FALSE)),"NON FAIT","OK") -> NON FAIT | I11: 150
A12: 500190 | B12: 0.0116382 | C12: 1A030720 | D12: FOIRE-FIN | E12: ELASTIQUE A CHEVEUX TEXTIL X6 | F12: 1 | G12: =IF(VLOOKUP(A12,archivage!A:B,2,FALSE)="non renseigné",1,IF(VLOOKUP(A12,archivage!A:B,2,FALSE)="pesable",2,3)) ->  | H12: =IF(ISNA(VLOOKUP(A12,archivage!A:B,1,FALSE)),"NON FAIT","OK") -> NON FAIT | I12: 150
A13: 530060 | B13: 0.0222226 | C13: 1A030720 | D13: FOIRE | E13: BRASSARD MOBILE | F13: 1 | G13: =IF(VLOOKUP(A13,archivage!A:B,2,FALSE)="non renseigné",1,IF(VLOOKUP(A13,archivage!A:B,2,FALSE)="pesable",2,3)) ->  | H13: =IF(ISNA(VLOOKUP(A13,archivage!A:B,1,FALSE)),"NON FAIT","OK") -> NON FAIT | I13: 150
A14: 500097 | B14: 0.0391624 | C14: 1A030730 | D14: STOP | E14: BROSSE CHEVEUX MIROIR | F14: 1 | G14: =IF(VLOOKUP(A14,archivage!A:B,2,FALSE)="non renseigné",1,IF(VLOOKUP(A14,archivage!A:B,2,FALSE)="pesable",2,3)) ->  | H14: =IF(ISNA(VLOOKUP(A14,archivage!A:B,1,FALSE)),"NON FAIT","OK") -> NON FAIT | I14: 150
A15: 500186 | B15: 0.084708 | C15: 1A030730 | D15: FOIRE | E15: FLACON VOYAGE X5 EXOTIQ CM | F15: 1 | G15: =IF(VLOOKUP(A15,archivage!A:B,2,FALSE)="non renseigné",1,IF(VLOOKUP(A15,archivage!A:B,2,FALSE)="pesable",2,3)) ->  | H15: =IF(ISNA(VLOOKUP(A15,archivage!A:B,1,FALSE)),"NON FAIT","OK") -> NON FAIT | I15: 60
A16: 500214 | B16: 0.1156 | C16: 1A030740 | D16: FOIRE | E16: CHAUSSETTE HOMME B43-46 X5 | F16: 3 | G16: =IF(VLOOKUP(A16,archivage!A:B,2,FALSE)="non renseigné",1,IF(VLOOKUP(A16,archivage!A:B,2,FALSE)="pesable",2,3)) ->  | H16: =IF(ISNA(VLOOKUP(A16,archivage!A:B,1,FALSE)),"NON FAIT","OK") -> NON FAIT | I16: 50
A17: 500055 | C17: 1A031810 | D17: TRAN-PX | E17: PORTE CLE LAMPE ALU 5 LED | F17: 1 | G17: =IF(VLOOKUP(A17,archivage!A:B,2,FALSE)="non renseigné",1,IF(VLOOKUP(A17,archivage!A:B,2,FALSE)="pesable",2,3)) ->  | H17: =IF(ISNA(VLOOKUP(A17,archivage!A:B,1,FALSE)),"NON FAIT","OK") -> NON FAIT | I17: 288
A18: 500189 | B18: 0.0524036 | C18: 1A030810 | D18: TRAN-PX-PT | E18: CABLE CHARGE 3EN1 TR* | F18: 1 | G18: =IF(VLOOKUP(A18,archivage!A:B,2,FALSE)="non renseigné",1,IF(VLOOKUP(A18,archivage!A:B,2,FALSE)="pesable",2,3)) ->  | H18: =IF(ISNA(VLOOKUP(A18,archivage!A:B,1,FALSE)),"NON FAIT","OK") -> NON FAIT | I18: 100
A19: 500198 | B19: 0.0742636 | C19: 1A030820 | D19: FOIRE-FIN | E19: ELASTIQUE DE MUSCULATION BRAS | F19: 2 | G19: =IF(VLOOKUP(A19,archivage!A:B,2,FALSE)="non renseigné",1,IF(VLOOKUP(A19,archivage!A:B,2,FALSE)="pesable",2,3)) ->  | H19: =IF(ISNA(VLOOKUP(A19,archivage!A:B,1,FALSE)),"NON FAIT","OK") -> NON FAIT | I19: 30
A20: 500249 | B20: 0.0247802 | C20: 1A030820 | D20: FOIRE | E20: GRATTE DOS CONDUCTEUR FLAG | F20: 1 | G20: =IF(VLOOKUP(A20,archivage!A:B,2,FALSE)="non renseigné",1,IF(VLOOKUP(A20,archivage!A:B,2,FALSE)="pesable",2,3)) ->  | H20: =IF(ISNA(VLOOKUP(A20,archivage!A:B,1,FALSE)),"NON FAIT","OK") -> NON FAIT | I20: 168
A21: 500241 | B21: 0.0353074 | C21: 1A030830 | D21: FOIRE-FIN | E21: GRATTE DOS TELESCOPIQUE PLASTI | F21: 1 | G21: =IF(VLOOKUP(A21,archivage!A:B,2,FALSE)="non renseigné",1,IF(VLOOKUP(A21,archivage!A:B,2,FALSE)="pesable",2,3)) ->  | H21: =IF(ISNA(VLOOKUP(A21,archivage!A:B,1,FALSE)),"NON FAIT","OK") -> NON FAIT | I21: 100
A22: 500229 | B22: 0.0757458 | C22: 1A030840 | D22: FOIRE-FIN | E22: CHAUSSETTE KPA BAS NB39-42CTX3 | F22: 1 | G22: =IF(VLOOKUP(A22,archivage!A:B,2,FALSE)="non renseigné",1,IF(VLOOKUP(A22,archivage!A:B,2,FALSE)="pesable",2,3)) ->  | H22: =IF(ISNA(VLOOKUP(A22,archivage!A:B,1,FALSE)),"NON FAIT","OK") -> NON FAIT | I22: 60
A23: 500193 | B23: 0.1521188 | C23: 1A030910 | D23: FOIRE-FIN | E23: CORDE A SAUTER | F23: 2 | G23: =IF(VLOOKUP(A23,archivage!A:B,2,FALSE)="non renseigné",1,IF(VLOOKUP(A23,archivage!A:B,2,FALSE)="pesable",2,3)) ->  | H23: =IF(ISNA(VLOOKUP(A23,archivage!A:B,1,FALSE)),"NON FAIT","OK") -> NON FAIT | I23: 30
A24: 500203 | B24: 0.0556808 | C24: 1A030920 | D24: FOIRE | E24: COCHONNET PETANQUE X3 | F24: 1 | G24: =IF(VLOOKUP(A24,archivage!A:B,2,FALSE)="non renseigné",1,IF(VLOOKUP(A24,archivage!A:B,2,FALSE)="pesable",2,3)) ->  | H24: =IF(ISNA(VLOOKUP(A24,archivage!A:B,1,FALSE)),"NON FAIT","OK") -> NON FAIT | I24: 100
A25: 500274 | B25: 0.0544098 | C25: 1A030920 | D25: FOIRE-TEST | E25: ECOUTEUR KIT PIETON BLUETOOTH | F25: 1 | G25: =IF(VLOOKUP(A25,archivage!A:B,2,FALSE)="non renseigné",1,IF(VLOOKUP(A25,archivage!A:B,2,FALSE)="pesable",2,3)) ->  | H25: =IF(ISNA(VLOOKUP(A25,archivage!A:B,1,FALSE)),"NON FAIT","OK") -> NON FAIT | I25: 100
A26: 500204 | B26: 0.2110772 | C26: 1A030930 | D26: FOIRE | E26: CEINTURE RUNNING BIDONS | F26: 1 | G26: =IF(VLOOKUP(A26,archivage!A:B,2,FALSE)="non renseigné",1,IF(VLOOKUP(A26,archivage!A:B,2,FALSE)="pesable",2,3)) ->  | H26: =IF(ISNA(VLOOKUP(A26,archivage!A:B,1,FALSE)),"NON FAIT","OK") -> NON FAIT | I26: 20
A27: 500301 | B27: 0.1372848 | C27: 1A030930 | D27: FOIRE-TEST | E27: BALLE REBONDISSANTES X10 | G27: =IF(VLOOKUP(A27,archivage!A:B,2,FALSE)="non renseigné",1,IF(VLOOKUP(A27,archivage!A:B,2,FALSE)="pesable",2,3)) ->  | H27: =IF(ISNA(VLOOKUP(A27,archivage!A:B,1,FALSE)),"NON FAIT","OK") -> NON FAIT | I27: 50
A28: 500212 | B28: 0.1034652 | C28: 1A030940 | D28: FOIRE | E28: CHAUSSETTE FEMME B39-41 X5 | F28: 3 | G28: =IF(VLOOKUP(A28,archivage!A:B,2,FALSE)="non renseigné",1,IF(VLOOKUP(A28,archivage!A:B,2,FALSE)="pesable",2,3)) ->  | H28: =IF(ISNA(VLOOKUP(A28,archivage!A:B,1,FALSE)),"NON FAIT","OK") -> NON FAIT | I28: 60
A29: 500121 | C29: 1A031010 | D29: FOIRE | E29: BOULE PETANQUE PLASTIQUE X8 | F29: 1 | G29: =IF(VLOOKUP(A29,archivage!A:B,2,FALSE)="non renseigné",1,IF(VLOOKUP(A29,archivage!A:B,2,FALSE)="pesable",2,3)) ->  | H29: =IF(ISNA(VLOOKUP(A29,archivage!A:B,1,FALSE)),"NON FAIT","OK") -> NON FAIT | I29: 4
A30: 500195 | B30: 0.070206 | C30: 1A031020 | D30: FOIRE-FIN | E30: POCHE A GLACE | F30: 1 | G30: =IF(VLOOKUP(A30,archivage!A:B,2,FALSE)="non renseigné",1,IF(VLOOKUP(A30,archivage!A:B,2,FALSE)="pesable",2,3)) ->  | H30: =IF(ISNA(VLOOKUP(A30,archivage!A:B,1,FALSE)),"NON FAIT","OK") -> NON FAIT | I30: 100
A31: 500062 | B31: 0.072318 | C31: 1A031030 | D31: TRAN-PX-PT | E31: SACOCHE VELO MOBILE TR* | F31: 1 | G31: =IF(VLOOKUP(A31,archivage!A:B,2,FALSE)="non renseigné",1,IF(VLOOKUP(A31,archivage!A:B,2,FALSE)="pesable",2,3)) ->  | H31: =IF(ISNA(VLOOKUP(A31,archivage!A:B,1,FALSE)),"NON FAIT","OK") -> NON FAIT | I31: 60
A32: 500211 | B32: 0.094185 | C32: 1A031040 | D32: FOIRE | E32: CHAUSSETTE FEMME B35-38 X5 | F32: 3 | G32: =IF(VLOOKUP(A32,archivage!A:B,2,FALSE)="non renseigné",1,IF(VLOOKUP(A32,archivage!A:B,2,FALSE)="pesable",2,3)) ->  | H32: =IF(ISNA(VLOOKUP(A32,archivage!A:B,1,FALSE)),"NON FAIT","OK") -> NON FAIT | I32: 60
A33: 500244 | B33: 0.049051 | C33: 1A031110 | D33: STOP | E33: PILE BOUTON CR X9 | F33: 1 | G33: =IF(VLOOKUP(A33,archivage!A:B,2,FALSE)="non renseigné",1,IF(VLOOKUP(A33,archivage!A:B,2,FALSE)="pesable",2,3)) ->  | H33: =IF(ISNA(VLOOKUP(A33,archivage!A:B,1,FALSE)),"NON FAIT","OK") -> NON FAIT | I33: 100
A34: 500251 | B34: 0.058267 | C34: 1A031110 | D34: STOP | E34: LAMPE FRONTALE LED COB | F34: 1 | G34: =IF(VLOOKUP(A34,archivage!A:B,2,FALSE)="non renseigné",1,IF(VLOOKUP(A34,archivage!A:B,2,FALSE)="pesable",2,3)) ->  | H34: =IF(ISNA(VLOOKUP(A34,archivage!A:B,1,FALSE)),"NON FAIT","OK") -> NON FAIT | I34: 120
A35: 500210 | B35: 0.123701 | C35: 1A031120 | D35: FOIRE | E35: TISSU MICROFIBRE 30X30 X6 | F35: 2 | G35: =IF(VLOOKUP(A35,archivage!A:B,2,FALSE)="non renseigné",1,IF(VLOOKUP(A35,archivage!A:B,2,FALSE)="pesable",2,3)) ->  | H35: =IF(ISNA(VLOOKUP(A35,archivage!A:B,1,FALSE)),"NON FAIT","OK") -> NON FAIT | I35: 40
A36: 500259 | B36: 0.0683906 | C36: 1A031130 | D36: FOIRE-TEST | E36: FLACON VOYAGE X5 SECOUR | F36: 1 | G36: =IF(VLOOKUP(A36,archivage!A:B,2,FALSE)="non renseigné",1,IF(VLOOKUP(A36,archivage!A:B,2,FALSE)="pesable",2,3)) ->  | H36: =IF(ISNA(VLOOKUP(A36,archivage!A:B,1,FALSE)),"NON FAIT","OK") -> NON FAIT | I36: 60
A37: 500281 | B37: 0.0408262 | C37: 1A031140 | D37: FOIRE-TEST | E37: BANDEAU ELASTIQUE SPORT X3 | F37: 1 | G37: =IF(VLOOKUP(A37,archivage!A:B,2,FALSE)="non renseigné",1,IF(VLOOKUP(A37,archivage!A:B,2,FALSE)="pesable",2,3)) ->  | H37: =IF(ISNA(VLOOKUP(A37,archivage!A:B,1,FALSE)),"NON FAIT","OK") -> NON FAIT | I37: 200
A38: 500201 | B38: 0.0244992 | C38: 1A031210 | D38: FOIRE | E38: BALLE TENNIS DE TABLE X6 | F38: 1 | G38: =IF(VLOOKUP(A38,archivage!A:B,2,FALSE)="non renseigné",1,IF(VLOOKUP(A38,archivage!A:B,2,FALSE)="pesable",2,3)) ->  | H38: =IF(ISNA(VLOOKUP(A38,archivage!A:B,1,FALSE)),"NON FAIT","OK") -> NON FAIT | I38: 60
A39: 500135 | B39: 0.0270744 | C39: 1A031220 | D39: FOIRE | E39: TAPETTE TELESCOPIQUE COULEUR | F39: 1 | G39: =IF(VLOOKUP(A39,archivage!A:B,2,FALSE)="non renseigné",1,IF(VLOOKUP(A39,archivage!A:B,2,FALSE)="pesable",2,3)) ->  | H39: =IF(ISNA(VLOOKUP(A39,archivage!A:B,1,FALSE)),"NON FAIT","OK") -> NON FAIT | I39: 100
A40: 500199 | B40: 0.1241616 | C40: 1A031230 | D40: FOIRE-FIN | E40: ELASTIQUE DE MUSCULATION PIED | F40: 2 | G40: =IF(VLOOKUP(A40,archivage!A:B,2,FALSE)="non renseigné",1,IF(VLOOKUP(A40,archivage!A:B,2,FALSE)="pesable",2,3)) ->  | H40: =IF(ISNA(VLOOKUP(A40,archivage!A:B,1,FALSE)),"NON FAIT","OK") -> NON FAIT | I40: 40
A41: 500280 | B41: 0.2248664 | C41: 1A031240 | D41: FOIRE-TEST | E41: SEMELLE DE SPORT GEL 42-46 | F41: 1 | G41: =IF(VLOOKUP(A41,archivage!A:B,2,FALSE)="non renseigné",1,IF(VLOOKUP(A41,archivage!A:B,2,FALSE)="pesable",2,3)) ->  | H41: =IF(ISNA(VLOOKUP(A41,archivage!A:B,1,FALSE)),"NON FAIT","OK") -> NON FAIT | I41: 30
A42: 500230 | B42: 0.0782206 | C42: 1A031310 | D42: FOIRE-FIN | E42: CHAUSSETTE KPA BAS NB43-46CTX3 | F42: 3 | G42: =IF(VLOOKUP(A42,archivage!A:B,2,FALSE)="non renseigné",1,IF(VLOOKUP(A42,archivage!A:B,2,FALSE)="pesable",2,3)) ->  | H42: =IF(ISNA(VLOOKUP(A42,archivage!A:B,1,FALSE)),"NON FAIT","OK") -> NON FAIT | I42: 60
A43: 500143 | B43: 0.2602002 | C43: 1A031320 | D43: STOP | E43: GLACONS X20 | F43: 1 | G43: =IF(VLOOKUP(A43,archivage!A:B,2,FALSE)="non renseigné",1,IF(VLOOKUP(A43,archivage!A:B,2,FALSE)="pesable",2,3)) ->  | H43: =IF(ISNA(VLOOKUP(A43,archivage!A:B,1,FALSE)),"NON FAIT","OK") -> NON FAIT | I43: 30
A44: 500046 | B44: 0.0457014 | C44: 1A031330 | D44: FOIRE | E44: NECESSAIRE REP CHAMBRE AIR X18 | F44: 1 | G44: =IF(VLOOKUP(A44,archivage!A:B,2,FALSE)="non renseigné",1,IF(VLOOKUP(A44,archivage!A:B,2,FALSE)="pesable",2,3)) ->  | H44: =IF(ISNA(VLOOKUP(A44,archivage!A:B,1,FALSE)),"NON FAIT","OK") -> NON FAIT | I44: 120
A45: 500160 | B45: 0.1706934 | C45: 1A031340 | D45: FOIRE | E45: LANTERNE 3 POSITIONS | F45: 1 | G45: =IF(VLOOKUP(A45,archivage!A:B,2,FALSE)="non renseigné",1,IF(VLOOKUP(A45,archivage!A:B,2,FALSE)="pesable",2,3)) ->  | H45: =IF(ISNA(VLOOKUP(A45,archivage!A:B,1,FALSE)),"NON FAIT","OK") -> NON FAIT | I45: 40
A46: 500140 | B46: 0.0352846 | C46: 1A031410 | D46: FOIRE | E46: POMPE A EAU | F46: 2 | G46: =IF(VLOOKUP(A46,archivage!A:B,2,FALSE)="non renseigné",1,IF(VLOOKUP(A46,archivage!A:B,2,FALSE)="pesable",2,3)) ->  | H46: =IF(ISNA(VLOOKUP(A46,archivage!A:B,1,FALSE)),"NON FAIT","OK") -> NON FAIT | I46: 100
A47: 500134 | C47: 1A040730 | D47: FOIRE | E47: BOULE PETANQUE METAL X3 | F47: 1 | G47: =IF(VLOOKUP(A47,archivage!A:B,2,FALSE)="non renseigné",1,IF(VLOOKUP(A47,archivage!A:B,2,FALSE)="pesable",2,3)) ->  | H47: LOURD | I47: 5
A48: 500169 | B48: 0.0277152 | C48: 1A031430 | D48: FOIRE | E48: POMPE A EAU KP | F48: 1 | G48: =IF(VLOOKUP(A48,archivage!A:B,2,FALSE)="non renseigné",1,IF(VLOOKUP(A48,archivage!A:B,2,FALSE)="pesable",2,3)) ->  | H48: =IF(ISNA(VLOOKUP(A48,archivage!A:B,1,FALSE)),"NON FAIT","OK") -> NON FAIT | I48: 100
A49: 500164 | B49: 0.0570644 | C49: 1A031440 | D49: FOIRE-FIN | E49: BALLON ARC EN CIEL 14CM | F49: 1 | G49: =IF(VLOOKUP(A49,archivage!A:B,2,FALSE)="non renseigné",1,IF(VLOOKUP(A49,archivage!A:B,2,FALSE)="pesable",2,3)) ->  | H49: =IF(ISNA(VLOOKUP(A49,archivage!A:B,1,FALSE)),"NON FAIT","OK") -> NON FAIT | I49: 50
A50: 500089 | B50: 0.048631 | C50: 1A031510 | D50: STOP | E50: BOITE LUNETTE MESSAGE ZIP | F50: 1 | G50: =IF(VLOOKUP(A50,archivage!A:B,2,FALSE)="non renseigné",1,IF(VLOOKUP(A50,archivage!A:B,2,FALSE)="pesable",2,3)) ->  | H50: =IF(ISNA(VLOOKUP(A50,archivage!A:B,1,FALSE)),"NON FAIT","OK") -> NON FAIT | I50: 80
A51: 500180 | B51: 0.044644 | C51: 1A031520 | D51: ARRD-FOI | E51: PISTOLET A EAU X2 KP | F51: 1 | G51: =IF(VLOOKUP(A51,archivage!A:B,2,FALSE)="non renseigné",1,IF(VLOOKUP(A51,archivage!A:B,2,FALSE)="pesable",2,3)) ->  | H51: =IF(ISNA(VLOOKUP(A51,archivage!A:B,1,FALSE)),"NON FAIT","OK") -> NON FAIT | I51: 150
A52: 500252 | B52: 0.0702788 | C52: 1A031520 | D52: FOIRE | E52: SERVIETTE RAFRAICHISSANTE | F52: 2 | G52: =IF(VLOOKUP(A52,archivage!A:B,2,FALSE)="non renseigné",1,IF(VLOOKUP(A52,archivage!A:B,2,FALSE)="pesable",2,3)) ->  | H52: =IF(ISNA(VLOOKUP(A52,archivage!A:B,1,FALSE)),"NON FAIT","OK") -> NON FAIT | I52: 70
A53: 500202 | B53: 0.1475876 | C53: 1A031530 | D53: FOIRE | E53: RAQUETTE TENNIS TABLE | F53: 1 | G53: =IF(VLOOKUP(A53,archivage!A:B,2,FALSE)="non renseigné",1,IF(VLOOKUP(A53,archivage!A:B,2,FALSE)="pesable",2,3)) ->  | H53: =IF(ISNA(VLOOKUP(A53,archivage!A:B,1,FALSE)),"NON FAIT","OK") -> NON FAIT | I53: 30
A54: 500187 | B54: 0.1322708 | C54: 1A031540 | D54: FOIRE | E54: VENTILATEUR BRUMISATEUR CM | G54: =IF(VLOOKUP(A54,archivage!A:B,2,FALSE)="non renseigné",1,IF(VLOOKUP(A54,archivage!A:B,2,FALSE)="pesable",2,3)) ->  | H54: =IF(ISNA(VLOOKUP(A54,archivage!A:B,1,FALSE)),"NON FAIT","OK") -> NON FAIT | I54: 40
A55: 500250 | B55: 0.028604 | C55: 1A031610 | D55: FOIRE | E55: SUPPORT MOBILE VENTIL MINI | F55: 1 | G55: =IF(VLOOKUP(A55,archivage!A:B,2,FALSE)="non renseigné",1,IF(VLOOKUP(A55,archivage!A:B,2,FALSE)="pesable",2,3)) ->  | H55: =IF(ISNA(VLOOKUP(A55,archivage!A:B,1,FALSE)),"NON FAIT","OK") -> NON FAIT | I55: 150
A56: 500002 | B56: 0.0438528 | C56: 1A031620 | D56: STOP | E56: BALLE ANTISTRESS X3 | F56: 1 | G56: =IF(VLOOKUP(A56,archivage!A:B,2,FALSE)="non renseigné",1,IF(VLOOKUP(A56,archivage!A:B,2,FALSE)="pesable",2,3)) ->  | H56: =IF(ISNA(VLOOKUP(A56,archivage!A:B,1,FALSE)),"NON FAIT","OK") -> NON FAIT | I56: 100
A57: 500291 | B57: 0.0466456 | C57: 1A031620 | D57: FOIRE | E57: BRIQUET CHALUMEAU | F57: 1 | G57: =IF(VLOOKUP(A57,archivage!A:B,2,FALSE)="non renseigné",1,IF(VLOOKUP(A57,archivage!A:B,2,FALSE)="pesable",2,3)) ->  | H57: =IF(ISNA(VLOOKUP(A57,archivage!A:B,1,FALSE)),"NON FAIT","OK") -> NON FAIT | I57: 100
A58: 500009 | B58: 0.0341634 | C58: 1A031630 | D58: FOIRE-FIN | E58: BRASSARD MOBILE | F58: 1 | G58: =IF(VLOOKUP(A58,archivage!A:B,2,FALSE)="non renseigné",1,IF(VLOOKUP(A58,archivage!A:B,2,FALSE)="pesable",2,3)) ->  | H58: =IF(ISNA(VLOOKUP(A58,archivage!A:B,1,FALSE)),"NON FAIT","OK") -> NON FAIT | I58: 150
A59: 500237 | B59: 0.041648 | C59: 1A031640 | D59: FOIRE-TEST | E59: EPUISETTE TELESCOPIQUE KP | F59: 1 | G59: =IF(VLOOKUP(A59,archivage!A:B,2,FALSE)="non renseigné",1,IF(VLOOKUP(A59,archivage!A:B,2,FALSE)="pesable",2,3)) ->  | H59: =IF(ISNA(VLOOKUP(A59,archivage!A:B,1,FALSE)),"NON FAIT","OK") -> NON FAIT | I59: 200
A60: 500144 | C60: 1A041330 | D60: FOIRE | E60: PERCHE A SELFIE TELESCOPIQUE 2 | F60: 1 | G60: =IF(VLOOKUP(A60,archivage!A:B,2,FALSE)="non renseigné",1,IF(VLOOKUP(A60,archivage!A:B,2,FALSE)="pesable",2,3)) ->  | H60: VIDE | I60: 96
A61: 500200 | B61: 0.0949978 | C61: 1A031810 | D61: FOIRE-FIN | E61: DISQUE VOLANT MOUSSE 2 ASS | F61: 2 | G61: =IF(VLOOKUP(A61,archivage!A:B,2,FALSE)="non renseigné",1,IF(VLOOKUP(A61,archivage!A:B,2,FALSE)="pesable",2,3)) ->  | H61: =IF(ISNA(VLOOKUP(A61,archivage!A:B,1,FALSE)),"NON FAIT","OK") -> NON FAIT | I61: 60
A62: 500068 | B62: 0.0284494 | C62: 1A031820 | D62: FOIRE-FIN | E62: SUPPORT MOBILE VENTIL MINI | F62: 1 | G62: =IF(VLOOKUP(A62,archivage!A:B,2,FALSE)="non renseigné",1,IF(VLOOKUP(A62,archivage!A:B,2,FALSE)="pesable",2,3)) ->  | H62: =IF(ISNA(VLOOKUP(A62,archivage!A:B,1,FALSE)),"NON FAIT","OK") -> NON FAIT | I62: 150
A63: 500270 | B63: 0.0580932 | C63: 1A031820 | D63: STOP | E63: CHAUSSETTE SPORT NOIR 35-38 X2 | F63: 2 | G63: =IF(VLOOKUP(A63,archivage!A:B,2,FALSE)="non renseigné",1,IF(VLOOKUP(A63,archivage!A:B,2,FALSE)="pesable",2,3)) ->  | H63: =IF(ISNA(VLOOKUP(A63,archivage!A:B,1,FALSE)),"NON FAIT","OK") -> NON FAIT | I63: 60
A64: 500036 | B64: 0.1178876 | C64: 1A031830 | D64: FOIRE-FIN | E64: LAMPE FRONTALE 7 LED | F64: 2 | G64: =IF(VLOOKUP(A64,archivage!A:B,2,FALSE)="non renseigné",1,IF(VLOOKUP(A64,archivage!A:B,2,FALSE)="pesable",2,3)) ->  | H64: =IF(ISNA(VLOOKUP(A64,archivage!A:B,1,FALSE)),"NON FAIT","OK") -> NON FAIT | I64: 60
A65: 500039 | B65: 0.0615576 | C65: 1A031840 | D65: STOP | E65: LOUPE CARTE ROUTIERE LED | F65: 1 | G65: =IF(VLOOKUP(A65,archivage!A:B,2,FALSE)="non renseigné",1,IF(VLOOKUP(A65,archivage!A:B,2,FALSE)="pesable",2,3)) ->  | H65: =IF(ISNA(VLOOKUP(A65,archivage!A:B,1,FALSE)),"NON FAIT","OK") -> NON FAIT | I65: 150
A66: 500219 | B66: 0.0763542 | C66: 1A031840 | D66: FOIRE | E66: CHARGEUR 12V USB X2+CABLE 3EN1 | F66: 1 | G66: =IF(VLOOKUP(A66,archivage!A:B,2,FALSE)="non renseigné",1,IF(VLOOKUP(A66,archivage!A:B,2,FALSE)="pesable",2,3)) ->  | H66: =IF(ISNA(VLOOKUP(A66,archivage!A:B,1,FALSE)),"NON FAIT","OK") -> NON FAIT | I66: 100
A67: 500047 | B67: 0.064811 | C67: 1A031910 | D67: FOIRE-FIN | E67: PERCHE A SELFIE TELESCOPIQUE 1 | F67: 1 | G67: =IF(VLOOKUP(A67,archivage!A:B,2,FALSE)="non renseigné",1,IF(VLOOKUP(A67,archivage!A:B,2,FALSE)="pesable",2,3)) ->  | H67: =IF(ISNA(VLOOKUP(A67,archivage!A:B,1,FALSE)),"NON FAIT","OK") -> NON FAIT | I67: 96
A68: 500277 | B68: 0.0692736 | C68: 1A031910 | D68: FOIRE-FIN | E68: CEINTURE RUNNING FENETRE | F68: 1 | G68: =IF(VLOOKUP(A68,archivage!A:B,2,FALSE)="non renseigné",1,IF(VLOOKUP(A68,archivage!A:B,2,FALSE)="pesable",2,3)) ->  | H68: =IF(ISNA(VLOOKUP(A68,archivage!A:B,1,FALSE)),"NON FAIT","OK") -> NON FAIT | I68: 100
A69: 500016 | B69: 0.0331672 | C69: 1A031920 | D69: FOIRE-FIN | E69: CHARGEUR 12V USB X1 1A | F69: 1 | G69: =IF(VLOOKUP(A69,archivage!A:B,2,FALSE)="non renseigné",1,IF(VLOOKUP(A69,archivage!A:B,2,FALSE)="pesable",2,3)) ->  | H69: =IF(ISNA(VLOOKUP(A69,archivage!A:B,1,FALSE)),"NON FAIT","OK") -> NON FAIT | I69: 100
A70: 500268 | B70: 0.116038 | C70: 1A031920 | D70: FOIRE | E70: BRUMISATEUR RECHARGEABLE | F70: 1 | G70: =IF(VLOOKUP(A70,archivage!A:B,2,FALSE)="non renseigné",1,IF(VLOOKUP(A70,archivage!A:B,2,FALSE)="pesable",2,3)) ->  | H70: =IF(ISNA(VLOOKUP(A70,archivage!A:B,1,FALSE)),"NON FAIT","OK") -> NON FAIT | I70: 80
A71: 500071 | B71: 0.064087 | C71: 1A031930 | D71: FOIRE-FIN | E71: LAMPE TORCHE ALU 9 LED COUL | F71: 1 | G71: =IF(VLOOKUP(A71,archivage!A:B,2,FALSE)="non renseigné",1,IF(VLOOKUP(A71,archivage!A:B,2,FALSE)="pesable",2,3)) ->  | H71: =IF(ISNA(VLOOKUP(A71,archivage!A:B,1,FALSE)),"NON FAIT","OK") -> NON FAIT | I71: 120
A72: 500031 | B72: 0.024693 | C72: 1A031940 | D72: FOIRE-FIN | E72: GRATTE DOS CONDUCTEUR FLAG | F72: 1 | G72: =IF(VLOOKUP(A72,archivage!A:B,2,FALSE)="non renseigné",1,IF(VLOOKUP(A72,archivage!A:B,2,FALSE)="pesable",2,3)) ->  | H72: =IF(ISNA(VLOOKUP(A72,archivage!A:B,1,FALSE)),"NON FAIT","OK") -> NON FAIT | I72: 168
A73: 500104 | B73: 0.0214702 | C73: 1A040710 | D73: FOIRE-FIN | E73: ECOUTEUR FLUO | F73: 1 | G73: =IF(VLOOKUP(A73,archivage!A:B,2,FALSE)="non renseigné",1,IF(VLOOKUP(A73,archivage!A:B,2,FALSE)="pesable",2,3)) ->  | H73: =IF(ISNA(VLOOKUP(A73,archivage!A:B,1,FALSE)),"NON FAIT","OK") -> NON FAIT | I73: 200
A74: 500267 | B74: 0.0412206 | C74: 1A040710 | D74: FOIRE-TEST | E74: BALLE MASSAGE | F74: 1 | G74: =IF(VLOOKUP(A74,archivage!A:B,2,FALSE)="non renseigné",1,IF(VLOOKUP(A74,archivage!A:B,2,FALSE)="pesable",2,3)) ->  | H74: =IF(ISNA(VLOOKUP(A74,archivage!A:B,1,FALSE)),"NON FAIT","OK") -> NON FAIT | I74: 80
A75: 500112 | B75: 0.0822824 | C75: 1A040720 | D75: FOIRE | E75: MAIN DE MASSAGE 2ASS | F75: 1 | G75: =IF(VLOOKUP(A75,archivage!A:B,2,FALSE)="non renseigné",1,IF(VLOOKUP(A75,archivage!A:B,2,FALSE)="pesable",2,3)) ->  | H75: =IF(ISNA(VLOOKUP(A75,archivage!A:B,1,FALSE)),"NON FAIT","OK") -> NON FAIT | I75: 70
A76: 500287 | B76: 0.1083798 | C76: 1A040720 | D76: FOIRE-TEST | E76: SOCKET 36-41 X5 | F76: 1 | G76: =IF(VLOOKUP(A76,archivage!A:B,2,FALSE)="non renseigné",1,IF(VLOOKUP(A76,archivage!A:B,2,FALSE)="pesable",2,3)) ->  | H76: =IF(ISNA(VLOOKUP(A76,archivage!A:B,1,FALSE)),"NON FAIT","OK") -> NON FAIT | I76: 60
A77: 500149 | C77: 1A041610 | D77: FOIRE | E77: PORTE CLE LAMPE CLIGNOTANTE | F77: 1 | G77: =IF(VLOOKUP(A77,archivage!A:B,2,FALSE)="non renseigné",1,IF(VLOOKUP(A77,archivage!A:B,2,FALSE)="pesable",2,3)) ->  | H77: VIDE | I77: 24
A78: 500093 | B78: 0.0248734 | C78: 1A040740 | D78: STOP | E78: POIGNET EPONGE+POCHE ZIP | F78: 1 | G78: =IF(VLOOKUP(A78,archivage!A:B,2,FALSE)="non renseigné",1,IF(VLOOKUP(A78,archivage!A:B,2,FALSE)="pesable",2,3)) ->  | H78: =IF(ISNA(VLOOKUP(A78,archivage!A:B,1,FALSE)),"NON FAIT","OK") -> NON FAIT | I78: 200
A79: 500163 | C79: 1A031420 | D79: FOIRE | E79: BALLON VOLLEY 14CM 2 ASS | F79: 1 | G79: =IF(VLOOKUP(A79,archivage!A:B,2,FALSE)="non renseigné",1,IF(VLOOKUP(A79,archivage!A:B,2,FALSE)="pesable",2,3)) ->  | H79: =IF(ISNA(VLOOKUP(A79,archivage!A:B,1,FALSE)),"NON FAIT","OK") -> NON FAIT | I79: 60
A80: 500019 | B80: 0.0952324 | C80: 1A040810 | D80: FOIRE-FIN | E80: CHAUSSETTE FEMME B35-38 X5 | F80: 1 | G80: =IF(VLOOKUP(A80,archivage!A:B,2,FALSE)="non renseigné",1,IF(VLOOKUP(A80,archivage!A:B,2,FALSE)="pesable",2,3)) ->  | H80: =IF(ISNA(VLOOKUP(A80,archivage!A:B,1,FALSE)),"NON FAIT","OK") -> NON FAIT | I80: 60
A81: 500239 | B81: 0.061081 | C81: 1A040820 | D81: STOP | E81: VENTILATEUR BRUMI PETIT CM 4AS | F81: 1 | G81: =IF(VLOOKUP(A81,archivage!A:B,2,FALSE)="non renseigné",1,IF(VLOOKUP(A81,archivage!A:B,2,FALSE)="pesable",2,3)) ->  | H81: =IF(ISNA(VLOOKUP(A81,archivage!A:B,1,FALSE)),"NON FAIT","OK") -> NON FAIT | I81: 60
A82: 500260 | B82: 0.0683886 | C82: 1A040830 | D82: FOIRE | E82: FLACON VOYAGE X5 DESIGN | F82: 2 | G82: =IF(VLOOKUP(A82,archivage!A:B,2,FALSE)="non renseigné",1,IF(VLOOKUP(A82,archivage!A:B,2,FALSE)="pesable",2,3)) ->  | H82: =IF(ISNA(VLOOKUP(A82,archivage!A:B,1,FALSE)),"NON FAIT","OK") -> NON FAIT | I82: 60
A83: 500215 | B83: 0.0629128 | C83: 1A040840 | D83: TRAN-PX-PT | E83: CEINTURE RUNNING TR* | F83: 1 | G83: =IF(VLOOKUP(A83,archivage!A:B,2,FALSE)="non renseigné",1,IF(VLOOKUP(A83,archivage!A:B,2,FALSE)="pesable",2,3)) ->  | H83: =IF(ISNA(VLOOKUP(A83,archivage!A:B,1,FALSE)),"NON FAIT","OK") -> NON FAIT | I83: 100
A84: 500020 | B84: 0.106548 | C84: 1A040910 | D84: FOIRE-FIN | E84: CHAUSSETTE HOMME B39-42 X5 | F84: 1 | G84: =IF(VLOOKUP(A84,archivage!A:B,2,FALSE)="non renseigné",1,IF(VLOOKUP(A84,archivage!A:B,2,FALSE)="pesable",2,3)) ->  | H84: =IF(ISNA(VLOOKUP(A84,archivage!A:B,1,FALSE)),"NON FAIT","OK") -> NON FAIT | I84: 60
A85: 500099 | B85: 0.0459996 | C85: 1A040920 | D85: STOP | E85: BOITE RANGEMENT METAL MESSAGE | F85: 1 | G85: =IF(VLOOKUP(A85,archivage!A:B,2,FALSE)="non renseigné",1,IF(VLOOKUP(A85,archivage!A:B,2,FALSE)="pesable",2,3)) ->  | H85: =IF(ISNA(VLOOKUP(A85,archivage!A:B,1,FALSE)),"NON FAIT","OK") -> NON FAIT | I85: 100
A86: 500288 | B86: 0.0390076 | C86: 1A040920 | D86: FOIRE-FIN | E86: BRASSARD MOBILE XL | F86: 1 | G86: =IF(VLOOKUP(A86,archivage!A:B,2,FALSE)="non renseigné",1,IF(VLOOKUP(A86,archivage!A:B,2,FALSE)="pesable",2,3)) ->  | H86: =IF(ISNA(VLOOKUP(A86,archivage!A:B,1,FALSE)),"NON FAIT","OK") -> NON FAIT | I86: 100
A87: 500111 | B87: 0.0749188 | C87: 1A040930 | D87: FOIRE | E87: FLACON VOYAGE X5 AVION | F87: 1 | G87: =IF(VLOOKUP(A87,archivage!A:B,2,FALSE)="non renseigné",1,IF(VLOOKUP(A87,archivage!A:B,2,FALSE)="pesable",2,3)) ->  | H87: =IF(ISNA(VLOOKUP(A87,archivage!A:B,1,FALSE)),"NON FAIT","OK") -> NON FAIT | I87: 60
A88: 500216 | B88: 0.0445322 | C88: 1A040940 | D88: FOIRE-FIN | E88: SUPPORT MOBILE VENTIL MAGNET | F88: 1 | G88: =IF(VLOOKUP(A88,archivage!A:B,2,FALSE)="non renseigné",1,IF(VLOOKUP(A88,archivage!A:B,2,FALSE)="pesable",2,3)) ->  | H88: =IF(ISNA(VLOOKUP(A88,archivage!A:B,1,FALSE)),"NON FAIT","OK") -> NON FAIT | I88: 100
A89: 500218 | B89: 0.025786 | C89: 1A040940 | D89: FOIRE | E89: PODOMETRE | F89: 1 | G89: =IF(VLOOKUP(A89,archivage!A:B,2,FALSE)="non renseigné",1,IF(VLOOKUP(A89,archivage!A:B,2,FALSE)="pesable",2,3)) ->  | H89: =IF(ISNA(VLOOKUP(A89,archivage!A:B,1,FALSE)),"NON FAIT","OK") -> NON FAIT | I89: 120
A90: 500283 | B90: 0.1558024 | C90: 1A041010 | D90: STOP | E90: GLACONS X18 FLAMANT CACTUS ANA | F90: 2 | G90: =IF(VLOOKUP(A90,archivage!A:B,2,FALSE)="non renseigné",1,IF(VLOOKUP(A90,archivage!A:B,2,FALSE)="pesable",2,3)) ->  | H90: =IF(ISNA(VLOOKUP(A90,archivage!A:B,1,FALSE)),"NON FAIT","OK") -> NON FAIT | I90: 30
A91: 500233 | B91: 0.1578948 | C91: 1A041020 | D91: FOIRE | E91: CHAUSSETTE KPA HAU NB39-42CTX3 | F91: 2 | G91: =IF(VLOOKUP(A91,archivage!A:B,2,FALSE)="non renseigné",1,IF(VLOOKUP(A91,archivage!A:B,2,FALSE)="pesable",2,3)) ->  | H91: =IF(ISNA(VLOOKUP(A91,archivage!A:B,1,FALSE)),"NON FAIT","OK") -> NON FAIT | I91: 40
A92: 500130 | B92: 0.0675226 | C92: 1A041030 | D92: FOIRE | E92: LAMPE TORCHE ALU LED COB 3 ASS | F92: 1 | G92: =IF(VLOOKUP(A92,archivage!A:B,2,FALSE)="non renseigné",1,IF(VLOOKUP(A92,archivage!A:B,2,FALSE)="pesable",2,3)) ->  | H92: =IF(ISNA(VLOOKUP(A92,archivage!A:B,1,FALSE)),"NON FAIT","OK") -> NON FAIT | I92: 120
A93: 500110 | B93: 0.0393624 | C93: 1A041040 | D93: FOIRE | E93: SEMELLE MEMOIRE FORME | F93: 2 | G93: =IF(VLOOKUP(A93,archivage!A:B,2,FALSE)="non renseigné",1,IF(VLOOKUP(A93,archivage!A:B,2,FALSE)="pesable",2,3)) ->  | H93: =IF(ISNA(VLOOKUP(A93,archivage!A:B,1,FALSE)),"NON FAIT","OK") -> NON FAIT | I93: 50
A94: 500107 | B94: 0.0333432 | C94: 1A041110 | D94: FOIRE | E94: POCHE MOBILE ETANCHE | F94: 1 | G94: =IF(VLOOKUP(A94,archivage!A:B,2,FALSE)="non renseigné",1,IF(VLOOKUP(A94,archivage!A:B,2,FALSE)="pesable",2,3)) ->  | H94: =IF(ISNA(VLOOKUP(A94,archivage!A:B,1,FALSE)),"NON FAIT","OK") -> NON FAIT | I94: 200
A95: 500113 | B95: 0.0973486 | C95: 1A041120 | D95: STOP | E95: ANTIVOL CABLE SPIRAL CLE | F95: 1 | G95: =IF(VLOOKUP(A95,archivage!A:B,2,FALSE)="non renseigné",1,IF(VLOOKUP(A95,archivage!A:B,2,FALSE)="pesable",2,3)) ->  | H95: =IF(ISNA(VLOOKUP(A95,archivage!A:B,1,FALSE)),"NON FAIT","OK") -> NON FAIT | I95: 80
A96: 500282 | B96: 0.019032 | C96: 1A041120 | D96: FOIRE | E96: POIGNET+POCHE ZIP | F96: 1 | G96: =IF(VLOOKUP(A96,archivage!A:B,2,FALSE)="non renseigné",1,IF(VLOOKUP(A96,archivage!A:B,2,FALSE)="pesable",2,3)) ->  | H96: =IF(ISNA(VLOOKUP(A96,archivage!A:B,1,FALSE)),"NON FAIT","OK") -> NON FAIT | I96: 200
A97: 500194 | B97: 0.039977 | C97: 1A041130 | D97: STOP | E97: CHIFFON + MAGNET PETANQUE | F97: 1 | G97: =IF(VLOOKUP(A97,archivage!A:B,2,FALSE)="non renseigné",1,IF(VLOOKUP(A97,archivage!A:B,2,FALSE)="pesable",2,3)) ->  | H97: =IF(ISNA(VLOOKUP(A97,archivage!A:B,1,FALSE)),"NON FAIT","OK") -> NON FAIT | I97: 120
A98: 500221 | B98: 0.0462612 | C98: 1A041130 | D98: FOIRE-FIN | E98: CEINTURE RUNNING ETIRABLE | F98: 2 | G98: =IF(VLOOKUP(A98,archivage!A:B,2,FALSE)="non renseigné",1,IF(VLOOKUP(A98,archivage!A:B,2,FALSE)="pesable",2,3)) ->  | H98: =IF(ISNA(VLOOKUP(A98,archivage!A:B,1,FALSE)),"NON FAIT","OK") -> NON FAIT | I98: 60
A99: 500272 | B99: 0.0540278 | C99: 1A041140 | D99: FOIRE-TEST | E99: CADENAS A CODE | F99: 1 | G99: =IF(VLOOKUP(A99,archivage!A:B,2,FALSE)="non renseigné",1,IF(VLOOKUP(A99,archivage!A:B,2,FALSE)="pesable",2,3)) ->  | H99: =IF(ISNA(VLOOKUP(A99,archivage!A:B,1,FALSE)),"NON FAIT","OK") -> NON FAIT | I99: 100
A100: 500115 | B100: 0.0435286 | C100: 1A041210 | D100: FOIRE-FIN | E100: SERVIETTE CHEVEUX MICROFIBRE | F100: 1 | G100: =IF(VLOOKUP(A100,archivage!A:B,2,FALSE)="non renseigné",1,IF(VLOOKUP(A100,archivage!A:B,2,FALSE)="pesable",2,3)) ->  | H100: =IF(ISNA(VLOOKUP(A100,archivage!A:B,1,FALSE)),"NON FAIT","OK") -> NON FAIT | I100: 100
A101: 500114 | B101: 0.0608938 | C101: 1A041220 | D101: FOIRE | E101: TREPIED POUR MOBILE | F101: 1 | G101: =IF(VLOOKUP(A101,archivage!A:B,2,FALSE)="non renseigné",1,IF(VLOOKUP(A101,archivage!A:B,2,FALSE)="pesable",2,3)) ->  | H101: =IF(ISNA(VLOOKUP(A101,archivage!A:B,1,FALSE)),"NON FAIT","OK") -> NON FAIT | I101: 100
A102: 500116 | B102: 0.0368744 | C102: 1A041230 | D102: FOIRE-FIN | E102: BANDEAU MULTIFONCTION | F102: 1 | G102: =IF(VLOOKUP(A102,archivage!A:B,2,FALSE)="non renseigné",1,IF(VLOOKUP(A102,archivage!A:B,2,FALSE)="pesable",2,3)) ->  | H102: =IF(ISNA(VLOOKUP(A102,archivage!A:B,1,FALSE)),"NON FAIT","OK") -> NON FAIT | I102: 150
A103: 500147 | B103: 0.2528676 | C103: 1A041240 | D103: STOP | E103: DESO CHAUSSURE | F103: 2 | G103: =IF(VLOOKUP(A103,archivage!A:B,2,FALSE)="non renseigné",1,IF(VLOOKUP(A103,archivage!A:B,2,FALSE)="pesable",2,3)) ->  | H103: =IF(ISNA(VLOOKUP(A103,archivage!A:B,1,FALSE)),"NON FAIT","OK") -> NON FAIT | I103: 40
A104: 500269 | B104: 0.1325868 | C104: 1A041240 | D104: FOIRE-TEST | E104: BALLON PILATE 20CM | F104: 1 | G104: =IF(VLOOKUP(A104,archivage!A:B,2,FALSE)="non renseigné",1,IF(VLOOKUP(A104,archivage!A:B,2,FALSE)="pesable",2,3)) ->  | H104: =IF(ISNA(VLOOKUP(A104,archivage!A:B,1,FALSE)),"NON FAIT","OK") -> NON FAIT | I104: 50
A105: 500118 | B105: 0.0632796 | C105: 1A041310 | D105: ARRD-FOI | E105: SUPPORT MOBILE VENTIL MAGNET | F105: 1 | G105: =IF(VLOOKUP(A105,archivage!A:B,2,FALSE)="non renseigné",1,IF(VLOOKUP(A105,archivage!A:B,2,FALSE)="pesable",2,3)) ->  | H105: =IF(ISNA(VLOOKUP(A105,archivage!A:B,1,FALSE)),"NON FAIT","OK") -> NON FAIT | I105: 100
A106: 500136 | B106: 0.0998596 | C106: 1A041320 | D106: FOIRE | E106: COUTEAU MULTIFONTION INOX | F106: 1 | G106: =IF(VLOOKUP(A106,archivage!A:B,2,FALSE)="non renseigné",1,IF(VLOOKUP(A106,archivage!A:B,2,FALSE)="pesable",2,3)) ->  | H106: =IF(ISNA(VLOOKUP(A106,archivage!A:B,1,FALSE)),"NON FAIT","OK") -> NON FAIT | I106: 96
A107: 500181 | C107: 1A030640 | D107: FOIRE-FIN | E107: PODOMETRE CM | F107: 1 | G107: =IF(VLOOKUP(A107,archivage!A:B,2,FALSE)="non renseigné",1,IF(VLOOKUP(A107,archivage!A:B,2,FALSE)="pesable",2,3)) ->  | H107: =IF(ISNA(VLOOKUP(A107,archivage!A:B,1,FALSE)),"NON FAIT","OK") -> NON FAIT | I107: 80
A108: 500131 | B108: 0.0276952 | C108: 1A041340 | D108: FOIRE | E108: PORTE CLE LAMPE CLIGN COB | F108: 1 | G108: =IF(VLOOKUP(A108,archivage!A:B,2,FALSE)="non renseigné",1,IF(VLOOKUP(A108,archivage!A:B,2,FALSE)="pesable",2,3)) ->  | H108: =IF(ISNA(VLOOKUP(A108,archivage!A:B,1,FALSE)),"NON FAIT","OK") -> NON FAIT | I108: 288
A109: 500139 | B109: 0.0869726 | C109: 1A041410 | D109: FOIRE-FIN | E109: BALLE ANTISTRESS X6 | F109: 2 | G109: =IF(VLOOKUP(A109,archivage!A:B,2,FALSE)="non renseigné",1,IF(VLOOKUP(A109,archivage!A:B,2,FALSE)="pesable",2,3)) ->  | H109: =IF(ISNA(VLOOKUP(A109,archivage!A:B,1,FALSE)),"NON FAIT","OK") -> NON FAIT | I109: 50
A110: 500128 | B110: 0.1097724 | C110: 1A041420 | D110: FOIRE | E110: LAMPE TORCHE MAGNET 27 LED | F110: 2 | G110: =IF(VLOOKUP(A110,archivage!A:B,2,FALSE)="non renseigné",1,IF(VLOOKUP(A110,archivage!A:B,2,FALSE)="pesable",2,3)) ->  | H110: =IF(ISNA(VLOOKUP(A110,archivage!A:B,1,FALSE)),"NON FAIT","OK") -> NON FAIT | I110: 60
A111: 500138 | B111: 0.022309 | C111: 1A041430 | D111: FOIRE | E111: BOITE RANGEMENT ZIP | F111: 1 | G111: =IF(VLOOKUP(A111,archivage!A:B,2,FALSE)="non renseigné",1,IF(VLOOKUP(A111,archivage!A:B,2,FALSE)="pesable",2,3)) ->  | H111: =IF(ISNA(VLOOKUP(A111,archivage!A:B,1,FALSE)),"NON FAIT","OK") -> NON FAIT | I111: 80
A112: 500289 | B112: 0.0885944 | C112: 1A041430 | D112: FOIRE-TEST | E112: LAMPE FRONTALE 8 LED | F112: 1 | G112: =IF(VLOOKUP(A112,archivage!A:B,2,FALSE)="non renseigné",1,IF(VLOOKUP(A112,archivage!A:B,2,FALSE)="pesable",2,3)) ->  | H112: =IF(ISNA(VLOOKUP(A112,archivage!A:B,1,FALSE)),"NON FAIT","OK") -> NON FAIT | I112: 50
A113: 500185 | B113: 0.025164 | C113: 1A041440 | D113: FOIRE | E113: MASQUE VOYAGE BOUCHON EXO CM | F113: 1 | G113: =IF(VLOOKUP(A113,archivage!A:B,2,FALSE)="non renseigné",1,IF(VLOOKUP(A113,archivage!A:B,2,FALSE)="pesable",2,3)) ->  | H113: =IF(ISNA(VLOOKUP(A113,archivage!A:B,1,FALSE)),"NON FAIT","OK") -> NON FAIT | I113: 150
A114: 500145 | B114: 0.0632382 | C114: 1A041510 | D114: FOIRE-FIN | E114: BRASSARD MOBILE ZIP | F114: 1 | G114: =IF(VLOOKUP(A114,archivage!A:B,2,FALSE)="non renseigné",1,IF(VLOOKUP(A114,archivage!A:B,2,FALSE)="pesable",2,3)) ->  | H114: =IF(ISNA(VLOOKUP(A114,archivage!A:B,1,FALSE)),"NON FAIT","OK") -> NON FAIT | I114: 80
A115: 500150 | B115: 0.0652136 | C115: 1A041520 | D115: FOIRE-FIN | E115: CEINTURE RUNNING FENETRE 2 | F115: 1 | G115: =IF(VLOOKUP(A115,archivage!A:B,2,FALSE)="non renseigné",1,IF(VLOOKUP(A115,archivage!A:B,2,FALSE)="pesable",2,3)) ->  | H115: =IF(ISNA(VLOOKUP(A115,archivage!A:B,1,FALSE)),"NON FAIT","OK") -> NON FAIT | I115: 100
A116: 500156 | B116: 0.0668236 | C116: 1A041530 | D116: FOIRE | E116: FLACON VOYAGE X5 MESSAGE CM | F116: 1 | G116: =IF(VLOOKUP(A116,archivage!A:B,2,FALSE)="non renseigné",1,IF(VLOOKUP(A116,archivage!A:B,2,FALSE)="pesable",2,3)) ->  | H116: =IF(ISNA(VLOOKUP(A116,archivage!A:B,1,FALSE)),"NON FAIT","OK") -> NON FAIT | I116: 70
A117: 500151 | B117: 0.0497458 | C117: 1A041540 | D117: FOIRE-FIN | E117: MONTRE PODOMETRE | F117: 1 | G117: =IF(VLOOKUP(A117,archivage!A:B,2,FALSE)="non renseigné",1,IF(VLOOKUP(A117,archivage!A:B,2,FALSE)="pesable",2,3)) ->  | H117: =IF(ISNA(VLOOKUP(A117,archivage!A:B,1,FALSE)),"NON FAIT","OK") -> NON FAIT | I117: 100
A118: 500254 | C118: 1B080420 | D118: FOIRE-TEST | E118: GANT DE RUNNING TACTILE M | F118: 1 | G118: =IF(VLOOKUP(A118,archivage!A:B,2,FALSE)="non renseigné",1,IF(VLOOKUP(A118,archivage!A:B,2,FALSE)="pesable",2,3)) ->  | H118: =IF(ISNA(VLOOKUP(A118,archivage!A:B,1,FALSE)),"NON FAIT","OK") -> NON FAIT | I118: 120
A119: 500161 | B119: 0.042683 | C119: 1A041620 | D119: FOIRE | E119: BALLE FUNNY 6CM | F119: 1 | G119: =IF(VLOOKUP(A119,archivage!A:B,2,FALSE)="non renseigné",1,IF(VLOOKUP(A119,archivage!A:B,2,FALSE)="pesable",2,3)) ->  | H119: =IF(ISNA(VLOOKUP(A119,archivage!A:B,1,FALSE)),"NON FAIT","OK") -> NON FAIT | I119: 100
A120: 500157 | B120: 0.0222624 | C120: 1A041630 | D120: FOIRE | E120: MASQUE VOYAGE BOUCHON CM | F120: 1 | G120: =IF(VLOOKUP(A120,archivage!A:B,2,FALSE)="non renseigné",1,IF(VLOOKUP(A120,archivage!A:B,2,FALSE)="pesable",2,3)) ->  | H120: =IF(ISNA(VLOOKUP(A120,archivage!A:B,1,FALSE)),"NON FAIT","OK") -> NON FAIT | I120: 170
A121: 500173 | B121: 0.0270222 | C121: 1A041640 | D121: FOIRE | E121: ELASTIQUE A CHEVEUX PLAST X6 | F121: 1 | G121: =IF(VLOOKUP(A121,archivage!A:B,2,FALSE)="non renseigné",1,IF(VLOOKUP(A121,archivage!A:B,2,FALSE)="pesable",2,3)) ->  | H121: =IF(ISNA(VLOOKUP(A121,archivage!A:B,1,FALSE)),"NON FAIT","OK") -> NON FAIT | I121: 120
A122: 500026 | B122: 0.0360044 | C122: 1A041810 | D122: FOIRE-FIN | E122: ECOUTEUR KIT PIETON SPORT | F122: 1 | G122: =IF(VLOOKUP(A122,archivage!A:B,2,FALSE)="non renseigné",1,IF(VLOOKUP(A122,archivage!A:B,2,FALSE)="pesable",2,3)) ->  | H122: =IF(ISNA(VLOOKUP(A122,archivage!A:B,1,FALSE)),"NON FAIT","OK") -> NON FAIT | I122: 180
A123: 500052 | B123: 0.0217122 | C123: 1A041820 | D123: FOIRE-FIN | E123: PODOMETRE | F123: 1 | G123: =IF(VLOOKUP(A123,archivage!A:B,2,FALSE)="non renseigné",1,IF(VLOOKUP(A123,archivage!A:B,2,FALSE)="pesable",2,3)) ->  | H123: =IF(ISNA(VLOOKUP(A123,archivage!A:B,1,FALSE)),"NON FAIT","OK") -> NON FAIT | I123: 140
A124: 500037 | B124: 0.0272668 | C124: 1A041830 | D124: STOP | E124: LAMPE LECTURE PINCE STICKER | F124: 1 | G124: =IF(VLOOKUP(A124,archivage!A:B,2,FALSE)="non renseigné",1,IF(VLOOKUP(A124,archivage!A:B,2,FALSE)="pesable",2,3)) ->  | H124: =IF(ISNA(VLOOKUP(A124,archivage!A:B,1,FALSE)),"NON FAIT","OK") -> NON FAIT | I124: 120
A125: 500033 | B125: 0.0863704 | C125: 1A041840 | D125: FOIRE-FIN | E125: KIT PIQUE NIQUE INOX | F125: 3 | G125: =IF(VLOOKUP(A125,archivage!A:B,2,FALSE)="non renseigné",1,IF(VLOOKUP(A125,archivage!A:B,2,FALSE)="pesable",2,3)) ->  | H125: =IF(ISNA(VLOOKUP(A125,archivage!A:B,1,FALSE)),"NON FAIT","OK") -> NON FAIT | I125: 120
A126: 500017 | B126: 0.034316 | C126: 1A041910 | D126: FOIRE-FIN | E126: CHARGEUR 12V USB X2 2A | F126: 1 | G126: =IF(VLOOKUP(A126,archivage!A:B,2,FALSE)="non renseigné",1,IF(VLOOKUP(A126,archivage!A:B,2,FALSE)="pesable",2,3)) ->  | H126: =IF(ISNA(VLOOKUP(A126,archivage!A:B,1,FALSE)),"NON FAIT","OK") -> NON FAIT | I126: 100
A127: 500058 | B127: 0.0188462 | C127: 1A041920 | D127: FOIRE-FIN | E127: PORTE CARTE ANTI PIRATAGE X3 | F127: 1 | G127: =IF(VLOOKUP(A127,archivage!A:B,2,FALSE)="non renseigné",1,IF(VLOOKUP(A127,archivage!A:B,2,FALSE)="pesable",2,3)) ->  | H127: =IF(ISNA(VLOOKUP(A127,archivage!A:B,1,FALSE)),"NON FAIT","OK") -> NON FAIT | I127: 150
A128: 500209 | B128: 0.3887338 | C128: 1A041930 | D128: FOIRE-FIN | E128: PILE ALCALINE LR6 X16 | F128: 1 | G128: =IF(VLOOKUP(A128,archivage!A:B,2,FALSE)="non renseigné",1,IF(VLOOKUP(A128,archivage!A:B,2,FALSE)="pesable",2,3)) ->  | H128: =IF(ISNA(VLOOKUP(A128,archivage!A:B,1,FALSE)),"NON FAIT","OK") -> NON FAIT | I128: 30
A129: 500226 | B129: 0.106999 | C129: 1A041940 | D129: FOIRE-TEST | E129: CHAUSSETTE FEMME B39-41 X5 | F129: 1 | G129: =IF(VLOOKUP(A129,archivage!A:B,2,FALSE)="non renseigné",1,IF(VLOOKUP(A129,archivage!A:B,2,FALSE)="pesable",2,3)) ->  | H129: =IF(ISNA(VLOOKUP(A129,archivage!A:B,1,FALSE)),"NON FAIT","OK") -> NON FAIT | I129: 60
A130: 645938 | B130: 0.1632898 | C130: 1A050710 | D130: FOIRE | E130: PAR SOL 60X130 ALU ARG BUB PAL | G130: =IF(VLOOKUP(A130,archivage!A:B,2,FALSE)="non renseigné",1,IF(VLOOKUP(A130,archivage!A:B,2,FALSE)="pesable",2,3)) ->  | H130: =IF(ISNA(VLOOKUP(A130,archivage!A:B,1,FALSE)),"NON FAIT","OK") -> NON FAIT | I130: 160
A131: 644510 | B131: 0.045634 | C131: 1A050720 | D131: STOP | E131: CABLE CHARGE MICUSB | F131: 1 | G131: =IF(VLOOKUP(A131,archivage!A:B,2,FALSE)="non renseigné",1,IF(VLOOKUP(A131,archivage!A:B,2,FALSE)="pesable",2,3)) ->  | H131: =IF(ISNA(VLOOKUP(A131,archivage!A:B,1,FALSE)),"NON FAIT","OK") -> NON FAIT | I131: 80
A132: 645274 | B132: 0.0152002 | C132: 1A050730 | D132: STOP | E132: PORTE CLE LAMPE+SON CACA CM | F132: 1 | G132: =IF(VLOOKUP(A132,archivage!A:B,2,FALSE)="non renseigné",1,IF(VLOOKUP(A132,archivage!A:B,2,FALSE)="pesable",2,3)) ->  | H132: =IF(ISNA(VLOOKUP(A132,archivage!A:B,1,FALSE)),"NON FAIT","OK") -> NON FAIT | I132: 300
A133: 645317 | B133: 0.0477952 | C133: 1A050740 | D133: FOIRE-FIN | E133: PINCE CEINTURE ARGENT X2 | F133: 2 | G133: =IF(VLOOKUP(A133,archivage!A:B,2,FALSE)="non renseigné",1,IF(VLOOKUP(A133,archivage!A:B,2,FALSE)="pesable",2,3)) ->  | H133: =IF(ISNA(VLOOKUP(A133,archivage!A:B,1,FALSE)),"NON FAIT","OK") -> NON FAIT | I133: 120
A134: 644314 | B134: 0.0188272 | C134: 1A050810 | D134: STOP | E134: PORTE CLE LAMPE+SON CANARD | F134: 1 | G134: =IF(VLOOKUP(A134,archivage!A:B,2,FALSE)="non renseigné",1,IF(VLOOKUP(A134,archivage!A:B,2,FALSE)="pesable",2,3)) ->  | H134: =IF(ISNA(VLOOKUP(A134,archivage!A:B,1,FALSE)),"NON FAIT","OK") -> NON FAIT | I134: 250
A135: 646271 | B135: 0.0911026 | C135: 1A050810 | D135: ARRD-FOI | E135: LAMPE PIVOTANTE MINI COB 2 ASS | F135: 1 | G135: =IF(VLOOKUP(A135,archivage!A:B,2,FALSE)="non renseigné",1,IF(VLOOKUP(A135,archivage!A:B,2,FALSE)="pesable",2,3)) ->  | H135: =IF(ISNA(VLOOKUP(A135,archivage!A:B,1,FALSE)),"NON FAIT","OK") -> NON FAIT | I135: 84
A136: 645304 | B136: 0.0430844 | C136: 1A050820 | D136: FOIRE-FIN | E136: VAPO ENTRETIEN AUTO MINI 3ASS | F136: 2 | G136: =IF(VLOOKUP(A136,archivage!A:B,2,FALSE)="non renseigné",1,IF(VLOOKUP(A136,archivage!A:B,2,FALSE)="pesable",2,3)) ->  | H136: =IF(ISNA(VLOOKUP(A136,archivage!A:B,1,FALSE)),"NON FAIT","OK") -> NON FAIT | I136: 70
A137: 646219 | B137: 0.0283364 | C137: 1A050820 | D137: FOIRE | E137: LAMPE LECTURE PINCE | F137: 1 | G137: =IF(VLOOKUP(A137,archivage!A:B,2,FALSE)="non renseigné",1,IF(VLOOKUP(A137,archivage!A:B,2,FALSE)="pesable",2,3)) ->  | H137: =IF(ISNA(VLOOKUP(A137,archivage!A:B,1,FALSE)),"NON FAIT","OK") -> NON FAIT | I137: 72
A138: 645941 | B138: 0.2747412 | C138: 1A050830 | D138: FOIRE | E138: GLACONS X18 BLEU | G138: =IF(VLOOKUP(A138,archivage!A:B,2,FALSE)="non renseigné",1,IF(VLOOKUP(A138,archivage!A:B,2,FALSE)="pesable",2,3)) ->  | H138: =IF(ISNA(VLOOKUP(A138,archivage!A:B,1,FALSE)),"NON FAIT","OK") -> NON FAIT | I138: 30
A139: 644839 | B139: 0.1127352 | C139: 1A050840 | D139: STOP | E139: SUPPORT MOBILE VENTIL 2 | F139: 1 | G139: =IF(VLOOKUP(A139,archivage!A:B,2,FALSE)="non renseigné",1,IF(VLOOKUP(A139,archivage!A:B,2,FALSE)="pesable",2,3)) ->  | H139: =IF(ISNA(VLOOKUP(A139,archivage!A:B,1,FALSE)),"NON FAIT","OK") -> NON FAIT | I139: 30
A140: 644671 | B140: 0.0248638 | C140: 1A050910 | D140: FOIRE-FIN | E140: GRATTE DOS CONDUCTEUR FLAG 3A | F140: 1 | G140: =IF(VLOOKUP(A140,archivage!A:B,2,FALSE)="non renseigné",1,IF(VLOOKUP(A140,archivage!A:B,2,FALSE)="pesable",2,3)) ->  | H140: =IF(ISNA(VLOOKUP(A140,archivage!A:B,1,FALSE)),"NON FAIT","OK") -> NON FAIT | I140: 168
A141: 644679 | B141: 0.0646584 | C141: 1A050920 | D141: FOIRE-FIN | E141: PERCHE A SELFIE TELESCOPIQUE 1 | F141: 1 | G141: =IF(VLOOKUP(A141,archivage!A:B,2,FALSE)="non renseigné",1,IF(VLOOKUP(A141,archivage!A:B,2,FALSE)="pesable",2,3)) ->  | H141: =IF(ISNA(VLOOKUP(A141,archivage!A:B,1,FALSE)),"NON FAIT","OK") -> NON FAIT | I141: 96
A142: 500263 | C142: 1A040740 | D142: FOIRE-TEST | E142: HALTERE REGLABLE POIGN CHEV X2 | F142: 1 | G142: =IF(VLOOKUP(A142,archivage!A:B,2,FALSE)="non renseigné",1,IF(VLOOKUP(A142,archivage!A:B,2,FALSE)="pesable",2,3)) ->  | H142: LOURD | I142: 18
A143: 642853 | B143: 0.0539434 | C143: 1A050940 | D143: STOP | E143: CABLE CHARGE 3EN1 IPHONE 4 | F143: 1 | G143: =IF(VLOOKUP(A143,archivage!A:B,2,FALSE)="non renseigné",1,IF(VLOOKUP(A143,archivage!A:B,2,FALSE)="pesable",2,3)) ->  | H143: =IF(ISNA(VLOOKUP(A143,archivage!A:B,1,FALSE)),"NON FAIT","OK") -> NON FAIT | I143: 100
A144: 644976 | B144: 0.0656676 | C144: 1A051010 | D144: STOP | E144: TOURNEVIS PRECI BOITE COUL X6 | F144: 1 | G144: =IF(VLOOKUP(A144,archivage!A:B,2,FALSE)="non renseigné",1,IF(VLOOKUP(A144,archivage!A:B,2,FALSE)="pesable",2,3)) ->  | H144: =IF(ISNA(VLOOKUP(A144,archivage!A:B,1,FALSE)),"NON FAIT","OK") -> NON FAIT | I144: 100
A145: 646122 | B145: 0.0480148 | C145: 1A051010 | D145: FOIRE-TEST | E145: SUPPORT MOBILE VELO PIVOTANT | F145: 1 | G145: =IF(VLOOKUP(A145,archivage!A:B,2,FALSE)="non renseigné",1,IF(VLOOKUP(A145,archivage!A:B,2,FALSE)="pesable",2,3)) ->  | H145: =IF(ISNA(VLOOKUP(A145,archivage!A:B,1,FALSE)),"NON FAIT","OK") -> NON FAIT | I145: 100
A146: 646228 | B146: 0.1676276 | C146: 1A051020 | D146: FOIRE-TEST | E146: POMPE VELO+FIX CADRE ED | F146: 1 | G146: =IF(VLOOKUP(A146,archivage!A:B,2,FALSE)="non renseigné",1,IF(VLOOKUP(A146,archivage!A:B,2,FALSE)="pesable",2,3)) ->  | H146: =IF(ISNA(VLOOKUP(A146,archivage!A:B,1,FALSE)),"NON FAIT","OK") -> NON FAIT | I146: 40
A147: 646176 | B147: 0.0853496 | C147: 1A051030 | D147: FOIRE-FIN | E147: LAMPE TORCHE MAGNET 14 LED 3AS | F147: 1 | G147: =IF(VLOOKUP(A147,archivage!A:B,2,FALSE)="non renseigné",1,IF(VLOOKUP(A147,archivage!A:B,2,FALSE)="pesable",2,3)) ->  | H147: =IF(ISNA(VLOOKUP(A147,archivage!A:B,1,FALSE)),"NON FAIT","OK") -> NON FAIT | I147: 100
A148: 645839 | B148: 0.16215 | C148: 1A051040 | D148: FOIRE | E148: PAR SOL LAT 110X53 CHAU PAL X2 | F148: 1 | G148: =IF(VLOOKUP(A148,archivage!A:B,2,FALSE)="non renseigné",1,IF(VLOOKUP(A148,archivage!A:B,2,FALSE)="pesable",2,3)) ->  | H148: =IF(ISNA(VLOOKUP(A148,archivage!A:B,1,FALSE)),"NON FAIT","OK") -> NON FAIT | I148: 40
A149: 645843 | B149: 0.1795398 | C149: 1A051110 | D149: FOIRE-TEST | E149: SUPPORT MOBILE 3 POSIT PAL | F149: 1 | G149: =IF(VLOOKUP(A149,archivage!A:B,2,FALSE)="non renseigné",1,IF(VLOOKUP(A149,archivage!A:B,2,FALSE)="pesable",2,3)) ->  | H149: =IF(ISNA(VLOOKUP(A149,archivage!A:B,1,FALSE)),"NON FAIT","OK") -> NON FAIT | I149: 30
A150: 645846 | B150: 0.0229532 | C150: 1A051120 | D150: FOIRE | E150: GRATTE DOS CONDUCTEUR PAL | F150: 1 | G150: =IF(VLOOKUP(A150,archivage!A:B,2,FALSE)="non renseigné",1,IF(VLOOKUP(A150,archivage!A:B,2,FALSE)="pesable",2,3)) ->  | H150: =IF(ISNA(VLOOKUP(A150,archivage!A:B,1,FALSE)),"NON FAIT","OK") -> NON FAIT | I150: 168
A151: 643041 | B151: 0.0688764 | C151: 1A051130 | D151: STOP | E151: FUSIBLE X24+PINCE | F151: 1 | G151: =IF(VLOOKUP(A151,archivage!A:B,2,FALSE)="non renseigné",1,IF(VLOOKUP(A151,archivage!A:B,2,FALSE)="pesable",2,3)) ->  | H151: =IF(ISNA(VLOOKUP(A151,archivage!A:B,1,FALSE)),"NON FAIT","OK") -> NON FAIT | I151: 60
A152: 645840 | B152: 0.0325118 | C152: 1A051140 | D152: FOIRE | E152: DANSEUR SOLAIRE HAWAIENNE PAL | F152: 1 | G152: =IF(VLOOKUP(A152,archivage!A:B,2,FALSE)="non renseigné",1,IF(VLOOKUP(A152,archivage!A:B,2,FALSE)="pesable",2,3)) ->  | H152: =IF(ISNA(VLOOKUP(A152,archivage!A:B,1,FALSE)),"NON FAIT","OK") -> NON FAIT | I152: 100
A153: 500223 | B153: 0.0570224 | C153: 1A051210 | D153: FOIRE | E153: BALLON VOLLEY ET FOOT 14CM | F153: 1 | G153: =IF(VLOOKUP(A153,archivage!A:B,2,FALSE)="non renseigné",1,IF(VLOOKUP(A153,archivage!A:B,2,FALSE)="pesable",2,3)) ->  | H153: =IF(ISNA(VLOOKUP(A153,archivage!A:B,1,FALSE)),"NON FAIT","OK") -> NON FAIT | I153: 50
A154: 645529 | B154: 0.0411222 | C154: 1A051220 | D154: ARRD-FOI | E154: GRATTE DOS CONDUCTEUR OURS | F154: 1 | G154: =IF(VLOOKUP(A154,archivage!A:B,2,FALSE)="non renseigné",1,IF(VLOOKUP(A154,archivage!A:B,2,FALSE)="pesable",2,3)) ->  | H154: =IF(ISNA(VLOOKUP(A154,archivage!A:B,1,FALSE)),"NON FAIT","OK") -> NON FAIT | I154: 180
A155: 645979 | B155: 0.2354444 | C155: 1A051230 | D155: FOIRE | E155: PAR SOL 83X147 ALU ARG BUB JUN | G155: =IF(VLOOKUP(A155,archivage!A:B,2,FALSE)="non renseigné",1,IF(VLOOKUP(A155,archivage!A:B,2,FALSE)="pesable",2,3)) ->  | H155: =IF(ISNA(VLOOKUP(A155,archivage!A:B,1,FALSE)),"NON FAIT","OK") -> NON FAIT | I155: 160
A156: 500243 | B156: 0.2705162 | C156: 1A051240 | D156: FOIRE | E156: DEGRIPPANT WD 250ML | G156: =IF(VLOOKUP(A156,archivage!A:B,2,FALSE)="non renseigné",1,IF(VLOOKUP(A156,archivage!A:B,2,FALSE)="pesable",2,3)) ->  | H156: =IF(ISNA(VLOOKUP(A156,archivage!A:B,1,FALSE)),"NON FAIT","OK") -> NON FAIT | I156: 35
A157: 645324 | B157: 0.1310452 | C157: 1A051240 | D157: FOIRE-FIN | E157: CHARGEUR 12/230V USBX2+3EN1TR* | F157: 2 | G157: =IF(VLOOKUP(A157,archivage!A:B,2,FALSE)="non renseigné",1,IF(VLOOKUP(A157,archivage!A:B,2,FALSE)="pesable",2,3)) ->  | H157: =IF(ISNA(VLOOKUP(A157,archivage!A:B,1,FALSE)),"NON FAIT","OK") -> NON FAIT | I157: 50
A158: 600889 | B158: 0.266719 | C158: 1A051310 | D158: FOIRE-FIN | E158: DEGRIPPANT TECHNIQUE 250ML | F158: 1 | G158: =IF(VLOOKUP(A158,archivage!A:B,2,FALSE)="non renseigné",1,IF(VLOOKUP(A158,archivage!A:B,2,FALSE)="pesable",2,3)) ->  | H158: =IF(ISNA(VLOOKUP(A158,archivage!A:B,1,FALSE)),"NON FAIT","OK") -> NON FAIT | I158: 35
A159: 646127 | B159: 0.0653932 | C159: 1A051310 | D159: FOIRE | E159: CEINTURE RUNNING FENETRE 3 | F159: 1 | G159: =IF(VLOOKUP(A159,archivage!A:B,2,FALSE)="non renseigné",1,IF(VLOOKUP(A159,archivage!A:B,2,FALSE)="pesable",2,3)) ->  | H159: =IF(ISNA(VLOOKUP(A159,archivage!A:B,1,FALSE)),"NON FAIT","OK") -> NON FAIT | I159: 100
A160: 644898 | B160: 0.1893844 | C160: 1A051320 | D160: FOIRE-FIN | E160: TISSU MICROFIBRE ROULEAU X6 | F160: 3 | G160: =IF(VLOOKUP(A160,archivage!A:B,2,FALSE)="non renseigné",1,IF(VLOOKUP(A160,archivage!A:B,2,FALSE)="pesable",2,3)) ->  | H160: =IF(ISNA(VLOOKUP(A160,archivage!A:B,1,FALSE)),"NON FAIT","OK") -> NON FAIT | I160: 40
A161: 646088 | B161: 0.1627382 | C161: 1A051330 | D161: FOIRE-FIN | E161: BRIQUET PIERRE X10 TRANSPARENT | F161: 1 | G161: =IF(VLOOKUP(A161,archivage!A:B,2,FALSE)="non renseigné",1,IF(VLOOKUP(A161,archivage!A:B,2,FALSE)="pesable",2,3)) ->  | H161: =IF(ISNA(VLOOKUP(A161,archivage!A:B,1,FALSE)),"NON FAIT","OK") -> NON FAIT | I161: 48
A162: 645358 | B162: 0.1188374 | C162: 1A051340 | D162: FOIRE-FIN | E162: LAMPE PIVOTANTE MINI COB 2 ASS | F162: 1 | G162: =IF(VLOOKUP(A162,archivage!A:B,2,FALSE)="non renseigné",1,IF(VLOOKUP(A162,archivage!A:B,2,FALSE)="pesable",2,3)) ->  | H162: =IF(ISNA(VLOOKUP(A162,archivage!A:B,1,FALSE)),"NON FAIT","OK") -> NON FAIT | I162: 84
A163: 644252 | B163: 0.0390288 | C163: 1A051410 | D163: STOP | E163: LAMPE TORCHE ABS COUL 9 LED | F163: 1 | G163: =IF(VLOOKUP(A163,archivage!A:B,2,FALSE)="non renseigné",1,IF(VLOOKUP(A163,archivage!A:B,2,FALSE)="pesable",2,3)) ->  | H163: =IF(ISNA(VLOOKUP(A163,archivage!A:B,1,FALSE)),"NON FAIT","OK") -> NON FAIT | I163: 96
A164: 644891 | B164: 0.0563662 | C164: 1A051420 | D164: FOIRE | E164: CABLE CHARGE 3EN1 POIS | F164: 3 | G164: =IF(VLOOKUP(A164,archivage!A:B,2,FALSE)="non renseigné",1,IF(VLOOKUP(A164,archivage!A:B,2,FALSE)="pesable",2,3)) ->  | H164: =IF(ISNA(VLOOKUP(A164,archivage!A:B,1,FALSE)),"NON FAIT","OK") -> NON FAIT | I164: 100
A165: 645353 | B165: 0.1160972 | C165: 1A051430 | D165: FOIRE-FIN | E165: LAMPE FRONTALE COB COULEUR | F165: 1 | G165: =IF(VLOOKUP(A165,archivage!A:B,2,FALSE)="non renseigné",1,IF(VLOOKUP(A165,archivage!A:B,2,FALSE)="pesable",2,3)) ->  | H165: =IF(ISNA(VLOOKUP(A165,archivage!A:B,1,FALSE)),"NON FAIT","OK") -> NON FAIT | I165: 60
A166: 644925 | B166: 0.4583952 | C166: 1A051440 | D166: TRAN-PX-PT | E166: DEGRIPPANT WD 440ML TR* | F166: 2 | G166: =IF(VLOOKUP(A166,archivage!A:B,2,FALSE)="non renseigné",1,IF(VLOOKUP(A166,archivage!A:B,2,FALSE)="pesable",2,3)) ->  | H166: =IF(ISNA(VLOOKUP(A166,archivage!A:B,1,FALSE)),"NON FAIT","OK") -> NON FAIT | I166: 23
A167: 600890 | B167: 0.234899 | C167: 1A051510 | D167: ARRD-FOI | E167: GRAISSE LITHIUM 250ML | F167: 1 | G167: =IF(VLOOKUP(A167,archivage!A:B,2,FALSE)="non renseigné",1,IF(VLOOKUP(A167,archivage!A:B,2,FALSE)="pesable",2,3)) ->  | H167: =IF(ISNA(VLOOKUP(A167,archivage!A:B,1,FALSE)),"NON FAIT","OK") -> NON FAIT | I167: 35
A168: 500222 | B168: 0.177869 | C168: 1A051520 | D168: STOP | E168: VENTILATEUR BRUMISATEUR | F168: 1 | G168: =IF(VLOOKUP(A168,archivage!A:B,2,FALSE)="non renseigné",1,IF(VLOOKUP(A168,archivage!A:B,2,FALSE)="pesable",2,3)) ->  | H168: =IF(ISNA(VLOOKUP(A168,archivage!A:B,1,FALSE)),"NON FAIT","OK") -> NON FAIT | I168: 40
A169: 500227 | B169: 0.1436854 | C169: 1A051520 | D169: FOIRE-TEST | E169: CHAUSSETTE HOMME B39-42 X5 | F169: 1 | G169: =IF(VLOOKUP(A169,archivage!A:B,2,FALSE)="non renseigné",1,IF(VLOOKUP(A169,archivage!A:B,2,FALSE)="pesable",2,3)) ->  | H169: =IF(ISNA(VLOOKUP(A169,archivage!A:B,1,FALSE)),"NON FAIT","OK") -> NON FAIT | I169: 60
A170: 600891 | B170: 0.2696426 | C170: 1A051530 | D170: FOIRE-FIN | E170: LUBRIFIANT SILICONE 250ML | F170: 1 | G170: =IF(VLOOKUP(A170,archivage!A:B,2,FALSE)="non renseigné",1,IF(VLOOKUP(A170,archivage!A:B,2,FALSE)="pesable",2,3)) ->  | H170: =IF(ISNA(VLOOKUP(A170,archivage!A:B,1,FALSE)),"NON FAIT","OK") -> NON FAIT | I170: 35
A171: 644843 | B171: 0.224988 | C171: 1A051540 | D171: STOP | E171: SUPPORT MOBILE VENTOUSE 2 | F171: 1 | G171: =IF(VLOOKUP(A171,archivage!A:B,2,FALSE)="non renseigné",1,IF(VLOOKUP(A171,archivage!A:B,2,FALSE)="pesable",2,3)) ->  | H171: =IF(ISNA(VLOOKUP(A171,archivage!A:B,1,FALSE)),"NON FAIT","OK") -> NON FAIT | I171: 30
A172: 646092 | B172: 0.0892038 | C172: 1A051610 | D172: FOIRE-FIN | E172: ATTRAPE BOULON MAGNETIQUE | F172: 1 | G172: =IF(VLOOKUP(A172,archivage!A:B,2,FALSE)="non renseigné",1,IF(VLOOKUP(A172,archivage!A:B,2,FALSE)="pesable",2,3)) ->  | H172: =IF(ISNA(VLOOKUP(A172,archivage!A:B,1,FALSE)),"NON FAIT","OK") -> NON FAIT | I172: 100
A173: 644535 | B173: 0.0659328 | C173: 1A051620 | D173: FOIRE-FIN | E173: CORDON PORTE LUNETTE | F173: 2 | G173: =IF(VLOOKUP(A173,archivage!A:B,2,FALSE)="non renseigné",1,IF(VLOOKUP(A173,archivage!A:B,2,FALSE)="pesable",2,3)) ->  | H173: =IF(ISNA(VLOOKUP(A173,archivage!A:B,1,FALSE)),"NON FAIT","OK") -> NON FAIT | I173: 150
A174: 644306 | B174: 0.0646424 | C174: 1A051630 | D174: STOP | E174: DISQUE STATIONNE INTERD AD TR* | F174: 1 | G174: =IF(VLOOKUP(A174,archivage!A:B,2,FALSE)="non renseigné",1,IF(VLOOKUP(A174,archivage!A:B,2,FALSE)="pesable",2,3)) ->  | H174: =IF(ISNA(VLOOKUP(A174,archivage!A:B,1,FALSE)),"NON FAIT","OK") -> NON FAIT | I174: 160
A175: 645844 | B175: 0.0997554 | C175: 1A051640 | D175: FOIRE-FIN | E175: FLACON VOYAGE X5 PAL | F175: 2 | G175: =IF(VLOOKUP(A175,archivage!A:B,2,FALSE)="non renseigné",1,IF(VLOOKUP(A175,archivage!A:B,2,FALSE)="pesable",2,3)) ->  | H175: =IF(ISNA(VLOOKUP(A175,archivage!A:B,1,FALSE)),"NON FAIT","OK") -> NON FAIT | I175: 60
A176: 500070 | B176: 0.1215488 | C176: 1A051810 | D176: FOIRE-FIN | E176: LAMPE TORCHE MAGNET 14 LED | F176: 1 | G176: =IF(VLOOKUP(A176,archivage!A:B,2,FALSE)="non renseigné",1,IF(VLOOKUP(A176,archivage!A:B,2,FALSE)="pesable",2,3)) ->  | H176: =IF(ISNA(VLOOKUP(A176,archivage!A:B,1,FALSE)),"NON FAIT","OK") -> NON FAIT | I176: 100
A177: 500056 | B177: 0.0553944 | C177: 1A051820 | D177: FOIRE-FIN | E177: PORTE PAPIER VOITURE MESSAGE | F177: 1 | G177: =IF(VLOOKUP(A177,archivage!A:B,2,FALSE)="non renseigné",1,IF(VLOOKUP(A177,archivage!A:B,2,FALSE)="pesable",2,3)) ->  | H177: =IF(ISNA(VLOOKUP(A177,archivage!A:B,1,FALSE)),"NON FAIT","OK") -> NON FAIT | I177: 300
A178: 500228 | B178: 0.1594664 | C178: 1A051830 | D178: FOIRE | E178: CHAUSSETTE HOMME B43-46 X5 NB | F178: 1 | G178: =IF(VLOOKUP(A178,archivage!A:B,2,FALSE)="non renseigné",1,IF(VLOOKUP(A178,archivage!A:B,2,FALSE)="pesable",2,3)) ->  | H178: =IF(ISNA(VLOOKUP(A178,archivage!A:B,1,FALSE)),"NON FAIT","OK") -> NON FAIT | I178: 60
A179: 500176 | B179: 0.231539 | C179: 1A051840 | D179: FOIRE-FIN | E179: PILE ALCALINE LR03 X16 | F179: 2 | G179: =IF(VLOOKUP(A179,archivage!A:B,2,FALSE)="non renseigné",1,IF(VLOOKUP(A179,archivage!A:B,2,FALSE)="pesable",2,3)) ->  | H179: =IF(ISNA(VLOOKUP(A179,archivage!A:B,1,FALSE)),"NON FAIT","OK") -> NON FAIT | I179: 40
A180: 500142 | B180: 0.0581444 | C180: 1A051910 | D180: STOP | E180: PORTE CLE METRE | F180: 1 | G180: =IF(VLOOKUP(A180,archivage!A:B,2,FALSE)="non renseigné",1,IF(VLOOKUP(A180,archivage!A:B,2,FALSE)="pesable",2,3)) ->  | H180: =IF(ISNA(VLOOKUP(A180,archivage!A:B,1,FALSE)),"NON FAIT","OK") -> NON FAIT | I180: 300
A181: 500225 | B181: 0.1297008 | C181: 1A051910 | D181: FOIRE-TEST | E181: CHAUSSETTE FEMME B35-38 X5 NB | F181: 1 | G181: =IF(VLOOKUP(A181,archivage!A:B,2,FALSE)="non renseigné",1,IF(VLOOKUP(A181,archivage!A:B,2,FALSE)="pesable",2,3)) ->  | H181: =IF(ISNA(VLOOKUP(A181,archivage!A:B,1,FALSE)),"NON FAIT","OK") -> NON FAIT | I181: 60
A182: 500122 | B182: 0.2261594 | C182: 1A051920 | D182: ARRD-FOI | E182: SUPPORT MOBILE VENTOUSE 2 | F182: 1 | G182: =IF(VLOOKUP(A182,archivage!A:B,2,FALSE)="non renseigné",1,IF(VLOOKUP(A182,archivage!A:B,2,FALSE)="pesable",2,3)) ->  | H182: =IF(ISNA(VLOOKUP(A182,archivage!A:B,1,FALSE)),"NON FAIT","OK") -> NON FAIT | I182: 30
A183: 500191 | B183: 0.0645256 | C183: 1A051930 | D183: ARRD-FOI | E183: BANDEAU EPONGE | F183: 1 | G183: =IF(VLOOKUP(A183,archivage!A:B,2,FALSE)="non renseigné",1,IF(VLOOKUP(A183,archivage!A:B,2,FALSE)="pesable",2,3)) ->  | H183: =IF(ISNA(VLOOKUP(A183,archivage!A:B,1,FALSE)),"NON FAIT","OK") -> NON FAIT | I183: 100
A184: 500217 | B184: 0.0803522 | C184: 1A051940 | D184: STOP | E184: PILE BOUTON CR X9 | F184: 1 | G184: =IF(VLOOKUP(A184,archivage!A:B,2,FALSE)="non renseigné",1,IF(VLOOKUP(A184,archivage!A:B,2,FALSE)="pesable",2,3)) ->  | H184: =IF(ISNA(VLOOKUP(A184,archivage!A:B,1,FALSE)),"NON FAIT","OK") -> NON FAIT | I184: 160
A185: 500258 | B185: 0.070728 | C185: 1A051940 | D185: FOIRE | E185: CASQUETTE SPORT | F185: 1 | G185: =IF(VLOOKUP(A185,archivage!A:B,2,FALSE)="non renseigné",1,IF(VLOOKUP(A185,archivage!A:B,2,FALSE)="pesable",2,3)) ->  | H185: =IF(ISNA(VLOOKUP(A185,archivage!A:B,1,FALSE)),"NON FAIT","OK") -> NON FAIT | I185: 100
A186: 645299 | B186: 0.2947354 | C186: 1A060810 | D186: TRAN-PX-PT | E186: SANDOW 1M X5 COULEUR PLAQ TR* | F186: 3 | G186: =IF(VLOOKUP(A186,archivage!A:B,2,FALSE)="non renseigné",1,IF(VLOOKUP(A186,archivage!A:B,2,FALSE)="pesable",2,3)) ->  | H186: =IF(ISNA(VLOOKUP(A186,archivage!A:B,1,FALSE)),"NON FAIT","OK") -> NON FAIT | I186: 30
A187: 645193 | B187: 0.4769426 | C187: 1A060820 | D187: TRAN-PX-PT | E187: TOURNEVIS BIMAT X7 TR* | F187: 2 | G187: =IF(VLOOKUP(A187,archivage!A:B,2,FALSE)="non renseigné",1,IF(VLOOKUP(A187,archivage!A:B,2,FALSE)="pesable",2,3)) ->  | H187: =IF(ISNA(VLOOKUP(A187,archivage!A:B,1,FALSE)),"NON FAIT","OK") -> NON FAIT | I187: 25
A188: 644293 | B188: 0.0455444 | C188: 1A060830 | D188: FOIRE-FIN | E188: RACLETTE MINI COULEUR X2 | F188: 1 | G188: =IF(VLOOKUP(A188,archivage!A:B,2,FALSE)="non renseigné",1,IF(VLOOKUP(A188,archivage!A:B,2,FALSE)="pesable",2,3)) ->  | H188: =IF(ISNA(VLOOKUP(A188,archivage!A:B,1,FALSE)),"NON FAIT","OK") -> NON FAIT | I188: 100
A189: 645133 | B189: 0.0449968 | C189: 1A060840 | D189: STOP | E189: DANSEUR SOLAIRE LICORNE CM | F189: 1 | G189: =IF(VLOOKUP(A189,archivage!A:B,2,FALSE)="non renseigné",1,IF(VLOOKUP(A189,archivage!A:B,2,FALSE)="pesable",2,3)) ->  | H189: =IF(ISNA(VLOOKUP(A189,archivage!A:B,1,FALSE)),"NON FAIT","OK") -> NON FAIT | I189: 60
A190: 645773 | B190: 0.1693324 | C190: 1A060910 | D190: FOIRE-FIN | E190: SUPPORT MOBILE VENTOUSE VIOLET | F190: 2 | G190: =IF(VLOOKUP(A190,archivage!A:B,2,FALSE)="non renseigné",1,IF(VLOOKUP(A190,archivage!A:B,2,FALSE)="pesable",2,3)) ->  | H190: =IF(ISNA(VLOOKUP(A190,archivage!A:B,1,FALSE)),"NON FAIT","OK") -> NON FAIT | I190: 54
A191: 645744 | B191: 0.0193856 | C191: 1A060920 | D191: FOIRE-FIN | E191: PORTE CLE BOIS FAMILLE CM | F191: 1 | G191: =IF(VLOOKUP(A191,archivage!A:B,2,FALSE)="non renseigné",1,IF(VLOOKUP(A191,archivage!A:B,2,FALSE)="pesable",2,3)) ->  | H191: =IF(ISNA(VLOOKUP(A191,archivage!A:B,1,FALSE)),"NON FAIT","OK") -> NON FAIT | I191: 300
A192: 645356 | B192: 0.2192278 | C192: 1A060930 | D192: FOIRE | E192: LAMPE PIVOTANTE MAGNET COB 2AS | F192: 2 | G192: =IF(VLOOKUP(A192,archivage!A:B,2,FALSE)="non renseigné",1,IF(VLOOKUP(A192,archivage!A:B,2,FALSE)="pesable",2,3)) ->  | H192: =IF(ISNA(VLOOKUP(A192,archivage!A:B,1,FALSE)),"NON FAIT","OK") -> NON FAIT | I192: 30
A193: 645742 | B193: 0.0384718 | C193: 1A060940 | D193: STOP | E193: STYLO EFFACE RAYURE CM | F193: 1 | G193: =IF(VLOOKUP(A193,archivage!A:B,2,FALSE)="non renseigné",1,IF(VLOOKUP(A193,archivage!A:B,2,FALSE)="pesable",2,3)) ->  | H193: =IF(ISNA(VLOOKUP(A193,archivage!A:B,1,FALSE)),"NON FAIT","OK") -> NON FAIT | I193: 130
A194: 646226 | B194: 0.1220838 | C194: 1A060940 | D194: FOIRE-TEST | E194: LINGETTE INTERIEUR X20 ED | F194: 1 | G194: =IF(VLOOKUP(A194,archivage!A:B,2,FALSE)="non renseigné",1,IF(VLOOKUP(A194,archivage!A:B,2,FALSE)="pesable",2,3)) ->  | H194: =IF(ISNA(VLOOKUP(A194,archivage!A:B,1,FALSE)),"NON FAIT","OK") -> NON FAIT | I194: 60
A195: 530066 | B195: 0.0568182 | C195: 1A061010 | D195: FOIRE | E195: PORTE PAPIER VOITURE VTG VERT | F195: 1 | G195: =IF(VLOOKUP(A195,archivage!A:B,2,FALSE)="non renseigné",1,IF(VLOOKUP(A195,archivage!A:B,2,FALSE)="pesable",2,3)) ->  | H195: =IF(ISNA(VLOOKUP(A195,archivage!A:B,1,FALSE)),"NON FAIT","OK") -> NON FAIT | I195: 160
A196: 644672 | B196: 0.0300676 | C196: 1A061020 | D196: FOIRE-FIN | E196: BRASSARD MOBILE | F196: 1 | G196: =IF(VLOOKUP(A196,archivage!A:B,2,FALSE)="non renseigné",1,IF(VLOOKUP(A196,archivage!A:B,2,FALSE)="pesable",2,3)) ->  | H196: =IF(ISNA(VLOOKUP(A196,archivage!A:B,1,FALSE)),"NON FAIT","OK") -> NON FAIT | I196: 150
A197: 645724 | B197: 0.0292536 | C197: 1A061030 | D197: FOIRE-FIN | E197: DESO AMIGO VANILLE FRAISE | F197: 2 | G197: =IF(VLOOKUP(A197,archivage!A:B,2,FALSE)="non renseigné",1,IF(VLOOKUP(A197,archivage!A:B,2,FALSE)="pesable",2,3)) ->  | H197: =IF(ISNA(VLOOKUP(A197,archivage!A:B,1,FALSE)),"NON FAIT","OK") -> NON FAIT | I197: 90
A198: 644959 | B198: 0.039244 | C198: 1A061040 | D198: STOP | E198: DANSEUR SOLAIRE RENNES ET NOEL | F198: 1 | G198: =IF(VLOOKUP(A198,archivage!A:B,2,FALSE)="non renseigné",1,IF(VLOOKUP(A198,archivage!A:B,2,FALSE)="pesable",2,3)) ->  | H198: =IF(ISNA(VLOOKUP(A198,archivage!A:B,1,FALSE)),"NON FAIT","OK") -> NON FAIT | I198: 80
A199: 645450 | B199: 0.2247088 | C199: 1A061110 | D199: FOIRE-FIN | E199: HUILE AEROSOL 200ML | F199: 1 | G199: =IF(VLOOKUP(A199,archivage!A:B,2,FALSE)="non renseigné",1,IF(VLOOKUP(A199,archivage!A:B,2,FALSE)="pesable",2,3)) ->  | H199: =IF(ISNA(VLOOKUP(A199,archivage!A:B,1,FALSE)),"NON FAIT","OK") -> NON FAIT | I199: 35
A200: 646134 | B200: 0.46136 | C200: 1A061120 | D200: ARRD-FOI | E200: COFFRET DOUILLE A CLIQUET X25 | F200: 2 | G200: =IF(VLOOKUP(A200,archivage!A:B,2,FALSE)="non renseigné",1,IF(VLOOKUP(A200,archivage!A:B,2,FALSE)="pesable",2,3)) ->  | H200: =IF(ISNA(VLOOKUP(A200,archivage!A:B,1,FALSE)),"NON FAIT","OK") -> NON FAIT | I200: 24
... 440 more rows
